Workbook

Sheet 設定シート (hidden)
B1: 年度変更に伴い、このファイルを継続的に使用するためには、下記の項目を設定してください。 このシートで設定した数値等が、保険料計算のシート等に反映します。淡黄色と淡緑色のセルのみ更新・変更可能です。
B3: 保険料計算年度 （「年度」は不要です） | E3: 8
B4: 保険料 | C4: 医療均等割額（年額） | E4: 47600
C5: 支援均等割額（年額） | E5: 17600
C6: 介護均等割額（年額） | E6: 17800
C7: 医療所得割率（年率） | E7: 7.51
C8: 支援所得割率（年率） | E8: 2.8
C9: 介護所得割率（年率） | E9: 2.43
B10: 限度額 | C10: 医療（年額） | E10: 670000 | F10: ←国保情報2025/12/1よりR8年度の限度額は、社会保障審議会医療保険部会で了承
C11: 支援（年額） | E11: 260000
C12: 介護（年額） | E12: 170000
B13: 軽減判定加算額 | C13: ５割減額（政減２号） | E13: 310000
C14: ２割減額（政減３号） | E14: 570000
B15: 均等割減額対象年齢 (未就学児) | E15: 6 | F15: 軽減割合 | G15: 0.5 | H15: ←この年齢と軽減率を変更することで均等割額が軽減される対象年齢と率が変更になっても対応できます。 30パーセント減なら「0.3」
B17: Ｒ８より追加項目 | C17: 子育て支援分 | E17: 均等割軽減対象 → | G17: 18 | H17: 歳以下
B18: 保険料 | C18: 均等割額（年額） | E18: 1873 | F18: 軽減割合 | G18: 1 | H18: ← 軽減割合がなく、軽減そのものがない場合は「0」を入力 30パーセント減なら「0.3」 均等割全額軽減なら「1」を入力
C19: 所得割額（年率） | E19: 0.27 | G19: 設定シートで入力した年齢以下の場合は、均等割を軽減する計算式を設定。
C20: 限度額（年額） | E20: 30000
B22: 介護保険対象者 | C22: 下限年齢 | E22: 40 | F22: ←この年齢を変更することで介護保険対象者の年齢に変更があった場合にも対応できますが、年金所得の計算式と年金所得特別控除の計算式中には、「40」と「65」の年齢判定による計算式のままとしています。
C23: 対象外年齢 | E23: 65

Sheet 保険料計算の方法
A1: 令和7年分 | B1: =TRIM("令和"&設定シート!E3&"年") -> 令和8年 | D1: 度 品川区国民健康保険料計算の方法
A5: ①【月額保険料計算シート】のタブをクリックして下記のシートを表示させるか、【保険料試算】をクリックします。
B33: =TRIM("★★ 入力する収入および所得は、令和"&設定シート!E3-1&"年1月1日から令和"&設定シート!E3-1&"年12月31日までのものとなります。 ★★") -> ★★ 入力する収入および所得は、令和7年1月1日から令和7年12月31日までのものとなります。 ★★
A35: ②一人目の加入者（加入者Ａ）の年齢に応じて【加入者Ａ介護あり】または【加入者Ａ介護なし】のいずれかをクリックします。
A38: ③加入者Ａの年齢を入力します。【年齢入力の注意点】をクリックすると注意点が表示されます。
A39: （年金収入がある場合は、 | D39: =TRIM("令和"&設定シート!E3&"年１月１日現在の年齢を入力してください。") -> 令和8年１月１日現在の年齢を入力してください。
A40: =TRIM("令和"&設定シート!E3+1&"年4月1日時点で未就学児等で均等割軽減対象の場合は"&設定シート!E15&"以下の数値を入力してください。") -> 令和9年4月1日時点で未就学児等で均等割軽減対象の場合は6以下の数値を入力してください。
A42: ④収入種別ごとに収入額を入力してください。ただし、営業所得・不動産所得・業務所得・雑所得の場合は収入ではなく「所得」を入力してください。
A44: 営業・不動産・業務・雑所得の入力欄には年金所得を除く所得額の合計を入力してください。
A46: =TRIM("※ 計算対象となる収入は令和"&設定シート!E3-1&"年１月１日から令和"&設定シート!E3-1&"年12月31日までの収入となります。") -> ※ 計算対象となる収入は令和7年１月１日から令和7年12月31日までの収入となります。
A48: ⑤二人目以降の加入者がいる場合は、同様に加入者Ｂ・加入者C・加入者Ｄ・加入者Ｅの各項目に年齢や収入額等を入力してください。
A51: ⑥入力内容を確認後、【計算結果表示】をクリックします。
A53: ⑦【世帯員別 年間保険料】をクリックすると加入者ごとの１年間（12ヶ月）分の保険料が表示されます。
A55: ※ 入力内容に誤りがある場合は、【入力データクリア】をクリックしてください。
A57: ※ 分離課税による所得がある方は、各分離所得から繰越控除額を控除した金額を④の営業・不動産・業務・雑所得の欄に加算して入力してください。
A59: （ただし、雑損失の繰越控除は控除の対象となりません）
A61: ※分離長期・分離短期譲渡所得については、特別控除後の金額を入力することで保険料の計算が可能ですが、所得金額によっては均等割額が正しく計算されない場合があります。
A62: 計算されない場合があります。
B65: 注意事項
B67: 計算結果は概算ですので端数の違いが生じる場合があります。
B69: 非自発的失業で保険料の軽減措置が該当する場合は、「非自発失業該当」の「該当」を選択して入力する必要があります。
B71: 国保に加入していない世帯主（社会保険加入者・後期高齢者）がいる場合は必ず淡黄色の部分に所得額等を入力してください。
B73: 専従者給与または専従者控除がある世帯では正しく計算できません。
B75: 加入者が６名以上いる場合は、このエクセルでは計算できません。
B77: 加入者が旧被扶養者の場合は、正しく計算できません。
B79: 年度内に40歳になって介護保険料が発生する場合と、65歳に達して介護保険料が国保料とは別に徴収される場合は年間保険料は計算結果とは一致しません。
B80: 一致しません。
B82: 1月１日現在、64歳で加入後に65歳に達した場合は、国民健康保険料として介護保険料は対象外となりますが、含まれた金額が表示されます。
B84: 未就学児に収入所得がある場合は、保険料が正しく計算できない場合があります。
B86: 年度内に75歳に達して後期高齢者医療制度に移行される方の年間保険料は一致しません。
B88: 給与所得調整控除がある方は、⑧のセルをクリックして「有」を選択してください。

Sheet 月額保険料計算シート
A1: =TRIM(保険料計算の方法!B1&"度") -> 令和8年度 | D1: =設定シート!E3 -> 8 | Q1: =設定シート!E3-1 -> 7
D2: =IF(RIGHT(LEFT(設定シート!E3,3),1)="1",TRIM("令和"&LEFT(RIGHT(設定シート!E3,3),2)+1&"年"),TRIM("令和"&LEFT(RIGHT(設定シート!E3,2),1)+1&"年")) -> 令和9年 | E2: =TRIM("令和"&LEFT(RIGHT(設定シート!E3,2),1)-1&"年") -> 令和7年
B3: 年齢 | C3: ２号 該当 | D3: 資格 区分 | F3: 給与収入 | G3: 給与所得 | H3: 非自発的 失業該当 | I3: 計算対象所得 （非自発⇒30％） | J3: 給与所得 調整控除 | K3: 年金収入 | L3: 年金所得 | M3: 年金特別控除 ６５歳以上 | N3: 営業・不動産 業務・雑所得 配当・譲渡所得 | O3: 基礎控除 | P3: 賦課基準額 | Q3: R03以降 政減判定 | R3: 給与年金 所得額調整控除 | S3: 介護計算用 賦課基準額 | V3: チェック | W3: チェック2
A5: 加入者A | C5: =IF((B5>=設定シート!$E$22)*AND(B5<設定シート!$E$23),"○","") ->  | E5: =COUNTIF(D5:D5,"1") -> 0 | G5: =IF(設定シート!$E$3>=8,IF(AND(J5="有",F5>10000000),F5-1950000-150000,IF(AND(J5="有",F5>8500000,F5<=10000000),ROUNDDOWN((F5-1950000)-((F5-8500000)*0.1),),IF(F5<=650000,0,IF(F5<=1900000,F5-650000,IF(F5<=3599999,ROUNDDOWN(F5/4,-3)*2.8-80000,IF(F5<=6599999,ROUNDDOWN(F5/4,-3)*3.2-440000,IF(F5<=8499999,F5*0.9-1100000,IF(F5>=8500000,F5-1950000)))))))),IF(AND(J5="有",F5>10000000),F5-1950000-150000,IF(AND(J5="有",F5>8500000,F5<=10000000),ROUNDDOWN((F5-1950000)-((F5-8500000)*0.1),),IF(F5<=550000,0,IF(F5<1619000,F5-550000,IF(F5<=1619999,1069000,IF(F5<=1621999,1070000,IF(F5<=1623999,1072000,IF(F5<=1627999,1074000,IF(F5<=1799999,ROUNDDOWN(F5/4,-3)*2.4+100000,IF(F5<=3599999,ROUNDDOWN(F5/4,-3)*2.8-80000,IF(F5<=6599999,ROUNDDOWN(F5/4,-3)*3.2-440000,IF(F5<=8499999,F5*0.9-1100000,IF(F5>=8500000,F5-1950000)))))))))))))) -> 0 | I5: =IF(AND(H5="該当",J5="有",F5>8500000),ROUNDDOWN((G5+I23)*3/10,0)-I23,IF(H5="該当",ROUNDDOWN(G5*3/10,0),G5)) -> 0 | L5: =IF(G5+N5>20000000,IF(K5>10000000,K5-(1955000-200000),IF(K5>7700000,K5*0.95-(1455000-200000),IF(K5>4100000,K5*0.85-(685000-200000),IF(B5>=65,IF(K5<=(1100000-200000),0,IF(K5<=3300000,K5-(1100000-200000),IF(K5<=4100000,K5*0.75-(275000-200000)))),IF(K5<=(600000-200000),0,IF(K5<=1300000,K5-(600000-200000),IF(K5<=4100000,K5*0.75-(275000-200000)))))))),IF(G5+N5>10000000,IF(K5>10000000,K5-(1955000-100000),IF(K5>7700000,K5*0.95-(1455000-100000),IF(K5>4100000,K5*0.85-(685000-100000),IF(B5>=65,IF(K5<=(1100000-100000),0,IF(K5<=3300000,K5-(1100000-100000),IF(K5<=4100000,K5*0.75-(275000-100000)))),IF(K5<=(600000-100000),0,IF(K5<=1300000,K5-(600000-100000),IF(K5<=4100000,K5*0.75-(275000-100000)))))))),IF(K5>10000000,K5-1955000,IF(K5>7700000,K5*0.95-1455000,IF(K5>4100000,K5*0.85-685000,IF(B5>=65,IF(K5<=1100000,0,IF(K5<=3300000,K5-1100000,IF(K5<=4100000,K5*0.75-275000))),IF(K5<=600000,0,IF(K5<=1300000,K5-600000,IF(K5<=4100000,K5*0.75-275000))))))))) -> 0 | M5: =IF(B5>=65,IF(L5>=150000,150000,L5),0) -> 0 | O5: =IF(ISBLANK(B5),0,IF(G5+L5+N5<=24000000,430000,IF(G5+L5+N5<=24500000,290000,IF(G5+L5+N5<=25000000,150000,IF(G5+L5+N5>25000000,0))))) -> 0 | P5: =IF(I5+L5+N5-O5-R5<=0,0,I5+L5+N5-O5-R5) -> 0 | Q5: =IF(OR(G5>0,L5>0),"○","") ->  | R5: =IF(G5+L5>100000,IF(AND(G5>0,L5>0),IF(AND(G5>=100000,L5>=100000),100000,MIN((G5+L5-100000),G5,L5)),0),) -> 0 | S5: =IF(B74=65,0,IF(COUNT(D6:D6)=0,0,P5)) -> 0 | V5: =IF(OR(AND(ISBLANK(B5),E5=1),AND(E5=0,B5<>"")),"×","") ->  | W5: =IF(OR(AND(B5<設定シート!$E$22,E6=1),AND(B5>=設定シート!$E$23,E6=1),AND(B5>=設定シート!$E$22,B5<設定シート!$E$23,E6<>1)),"×","") ->  | AB5: =IF(OR(AND(F5<>"",B5=""),(AND(K5<>"",B5="")),(AND(N5<>"",B5=""))),"加入者Aの年齢を入力してください","") ->  | AE5: =IF(OR(AND(ISBLANK(B5),E5=1),(AND(ISNUMBER(B5),E5=0))),"加入者Aの資格設定ボタンをクリックして資格を設定してください","") -> 
E6: =COUNTIF(D6:D6,"4") -> 0
A7: 加入者B | C7: =IF((B7>=設定シート!$E$22)*AND(B7<設定シート!$E$23),"○","") ->  | E7: =COUNTIF(D7:D7,"1") -> 0 | G7: =IF(設定シート!$E$3>=8,IF(AND(J7="有",F7>10000000),F7-1950000-150000,IF(AND(J7="有",F7>8500000,F7<=10000000),ROUNDDOWN((F7-1950000)-((F7-8500000)*0.1),),IF(F7<=650000,0,IF(F7<=1900000,F7-650000,IF(F7<=3599999,ROUNDDOWN(F7/4,-3)*2.8-80000,IF(F7<=6599999,ROUNDDOWN(F7/4,-3)*3.2-440000,IF(F7<=8499999,F7*0.9-1100000,IF(F7>=8500000,F7-1950000)))))))),IF(AND(J7="有",F7>10000000),F7-1950000-150000,IF(AND(J7="有",F7>8500000,F7<=10000000),ROUNDDOWN((F7-1950000)-((F7-8500000)*0.1),),IF(F7<=550000,0,IF(F7<1619000,F7-550000,IF(F7<=1619999,1069000,IF(F7<=1621999,1070000,IF(F7<=1623999,1072000,IF(F7<=1627999,1074000,IF(F7<=1799999,ROUNDDOWN(F7/4,-3)*2.4+100000,IF(F7<=3599999,ROUNDDOWN(F7/4,-3)*2.8-80000,IF(F7<=6599999,ROUNDDOWN(F7/4,-3)*3.2-440000,IF(F7<=8499999,F7*0.9-1100000,IF(F7>=8500000,F7-1950000)))))))))))))) -> 0 | I7: =IF(AND(H7="該当",J7="有",F7>8500000),ROUNDDOWN((G7+J23)*3/10,0)-J23,IF(H7="該当",ROUNDDOWN(G7*3/10,0),G7)) -> 0 | L7: =IF(G7+N7>20000000,IF(K7>10000000,K7-(1955000-200000),IF(K7>7700000,K7*0.95-(1455000-200000),IF(K7>4100000,K7*0.85-(685000-200000),IF(B7>=65,IF(K7<=(1100000-200000),0,IF(K7<=3300000,K7-(1100000-200000),IF(K7<=4100000,K7*0.75-(275000-200000)))),IF(K7<=(600000-200000),0,IF(K7<=1300000,K7-(600000-200000),IF(K7<=4100000,K7*0.75-(275000-200000)))))))),IF(G7+N7>10000000,IF(K7>10000000,K7-(1955000-100000),IF(K7>7700000,K7*0.95-(1455000-100000),IF(K7>4100000,K7*0.85-(685000-100000),IF(B7>=65,IF(K7<=(1100000-100000),0,IF(K7<=3300000,K7-(1100000-100000),IF(K7<=4100000,K7*0.75-(275000-100000)))),IF(K7<=(600000-100000),0,IF(K7<=1300000,K7-(600000-100000),IF(K7<=4100000,K7*0.75-(275000-100000)))))))),IF(K7>10000000,K7-1955000,IF(K7>7700000,K7*0.95-1455000,IF(K7>4100000,K7*0.85-685000,IF(B7>=65,IF(K7<=1100000,0,IF(K7<=3300000,K7-1100000,IF(K7<=4100000,K7*0.75-275000))),IF(K7<=600000,0,IF(K7<=1300000,K7-600000,IF(K7<=4100000,K7*0.75-275000))))))))) -> 0 | M7: =IF(B7>=65,IF(L7>=150000,150000,L7),0) -> 0 | O7: =IF(ISBLANK(B7),0,IF(G7+L7+N7<=24000000,430000,IF(G7+L7+N7<=24500000,290000,IF(G7+L7+N7<=25000000,150000,IF(G7+L7+N7>25000000,0))))) -> 0 | P7: =IF(I7+L7+N7-O7-R7<=0,0,I7+L7+N7-O7-R7) -> 0 | Q7: =IF(OR(G7>0,L7>0),"○","") ->  | R7: =IF(G7+L7>100000,IF(AND(G7>0,L7>0),IF(AND(G7>=100000,L7>=100000),100000,MIN((G7+L7-100000),G7,L7)),0),) -> 0 | S7: =IF(B75=65,0,IF(COUNT(D8:D8)=0,0,P7)) -> 0 | V7: =IF(OR(AND(ISBLANK(B7),E7=1),AND(E7=0,B7<>"")),"×","") ->  | W7: =IF(OR(AND(B7<設定シート!$E$22,E8=1),AND(B7>=設定シート!$E$23,E8=1),AND(B7>=設定シート!$E$22,B7<設定シート!$E$23,E8<>1)),"×","") ->  | AB7: =IF(OR(AND(F7<>"",B7=""),(AND(K7<>"",B7="")),(AND(N7<>"",B7=""))),"加入者Bの年齢を入力してください","") ->  | AE7: =IF(OR(AND(ISBLANK(B7),E7=1),(AND(ISNUMBER(B7),E7=0))),"加入者Bの資格設定ボタンをクリックして資格を設定してください","") -> 
E8: =COUNTIF(D8:D8,"4") -> 0
A9: 加入者C | C9: =IF((B9>=設定シート!$E$22)*AND(B9<設定シート!$E$23),"○","") ->  | E9: =COUNTIF(D9:D9,"1") -> 0 | G9: =IF(設定シート!$E$3>=8,IF(AND(J9="有",F9>10000000),F9-1950000-150000,IF(AND(J9="有",F9>8500000,F9<=10000000),ROUNDDOWN((F9-1950000)-((F9-8500000)*0.1),),IF(F9<=650000,0,IF(F9<=1900000,F9-650000,IF(F9<=3599999,ROUNDDOWN(F9/4,-3)*2.8-80000,IF(F9<=6599999,ROUNDDOWN(F9/4,-3)*3.2-440000,IF(F9<=8499999,F9*0.9-1100000,IF(F9>=8500000,F9-1950000)))))))),IF(AND(J9="有",F9>10000000),F9-1950000-150000,IF(AND(J9="有",F9>8500000,F9<=10000000),ROUNDDOWN((F9-1950000)-((F9-8500000)*0.1),),IF(F9<=550000,0,IF(F9<1619000,F9-550000,IF(F9<=1619999,1069000,IF(F9<=1621999,1070000,IF(F9<=1623999,1072000,IF(F9<=1627999,1074000,IF(F9<=1799999,ROUNDDOWN(F9/4,-3)*2.4+100000,IF(F9<=3599999,ROUNDDOWN(F9/4,-3)*2.8-80000,IF(F9<=6599999,ROUNDDOWN(F9/4,-3)*3.2-440000,IF(F9<=8499999,F9*0.9-1100000,IF(F9>=8500000,F9-1950000)))))))))))))) -> 0 | I9: =IF(AND(H9="該当",J9="有",F9>8500000),ROUNDDOWN((G9+K23)*3/10,0)-K23,IF(H9="該当",ROUNDDOWN(G9*3/10,0),G9)) -> 0 | L9: =IF(G9+N9>20000000,IF(K9>10000000,K9-(1955000-200000),IF(K9>7700000,K9*0.95-(1455000-200000),IF(K9>4100000,K9*0.85-(685000-200000),IF(B9>=65,IF(K9<=(1100000-200000),0,IF(K9<=3300000,K9-(1100000-200000),IF(K9<=4100000,K9*0.75-(275000-200000)))),IF(K9<=(600000-200000),0,IF(K9<=1300000,K9-(600000-200000),IF(K9<=4100000,K9*0.75-(275000-200000)))))))),IF(G9+N9>10000000,IF(K9>10000000,K9-(1955000-100000),IF(K9>7700000,K9*0.95-(1455000-100000),IF(K9>4100000,K9*0.85-(685000-100000),IF(B9>=65,IF(K9<=(1100000-100000),0,IF(K9<=3300000,K9-(1100000-100000),IF(K9<=4100000,K9*0.75-(275000-100000)))),IF(K9<=(600000-100000),0,IF(K9<=1300000,K9-(600000-100000),IF(K9<=4100000,K9*0.75-(275000-100000)))))))),IF(K9>10000000,K9-1955000,IF(K9>7700000,K9*0.95-1455000,IF(K9>4100000,K9*0.85-685000,IF(B9>=65,IF(K9<=1100000,0,IF(K9<=3300000,K9-1100000,IF(K9<=4100000,K9*0.75-275000))),IF(K9<=600000,0,IF(K9<=1300000,K9-600000,IF(K9<=4100000,K9*0.75-275000))))))))) -> 0 | M9: =IF(B9>=65,IF(L9>=150000,150000,L9),0) -> 0 | O9: =IF(ISBLANK(B9),0,IF(G9+L9+N9<=24000000,430000,IF(G9+L9+N9<=24500000,290000,IF(G9+L9+N9<=25000000,150000,IF(G9+L9+N9>25000000,0))))) -> 0 | P9: =IF(I9+L9+N9-O9-R9<=0,0,I9+L9+N9-O9-R9) -> 0 | Q9: =IF(OR(G9>0,L9>0),"○","") ->  | R9: =IF(G9+L9>100000,IF(AND(G9>0,L9>0),IF(AND(G9>=100000,L9>=100000),100000,MIN((G9+L9-100000),G9,L9)),0),) -> 0 | S9: =IF(B76=65,0,IF(COUNT(D10:D10)=0,0,P9)) -> 0 | V9: =IF(OR(AND(ISBLANK(B9),E9=1),AND(E9=0,B9<>"")),"×","") ->  | W9: =IF(OR(AND(B9<設定シート!$E$22,E10=1),AND(B9>=設定シート!$E$23,E10=1),AND(B9>=設定シート!$E$22,B9<設定シート!$E$23,E10<>1)),"×","") ->  | AB9: =IF(OR(AND(F9<>"",B9=""),(AND(K9<>"",B9="")),(AND(N9<>"",B9=""))),"加入者Cの年齢を入力してください","") ->  | AE9: =IF(OR(AND(ISBLANK(B9),E9=1),(AND(ISNUMBER(B9),E9=0))),"加入者Cの資格設定ボタンをクリックして資格を設定してください","") -> 
E10: =COUNTIF(D10:D10,"4") -> 0
A11: 加入者D | C11: =IF((B11>=設定シート!$E$22)*AND(B11<設定シート!$E$23),"○","") ->  | E11: =COUNTIF(D11:D11,"1") -> 0 | G11: =IF(設定シート!$E$3>=8,IF(AND(J11="有",F11>10000000),F11-1950000-150000,IF(AND(J11="有",F11>8500000,F11<=10000000),ROUNDDOWN((F11-1950000)-((F11-8500000)*0.1),),IF(F11<=650000,0,IF(F11<=1900000,F11-650000,IF(F11<=3599999,ROUNDDOWN(F11/4,-3)*2.8-80000,IF(F11<=6599999,ROUNDDOWN(F11/4,-3)*3.2-440000,IF(F11<=8499999,F11*0.9-1100000,IF(F11>=8500000,F11-1950000)))))))),IF(AND(J11="有",F11>10000000),F11-1950000-150000,IF(AND(J11="有",F11>8500000,F11<=10000000),ROUNDDOWN((F11-1950000)-((F11-8500000)*0.1),),IF(F11<=550000,0,IF(F11<1619000,F11-550000,IF(F11<=1619999,1069000,IF(F11<=1621999,1070000,IF(F11<=1623999,1072000,IF(F11<=1627999,1074000,IF(F11<=1799999,ROUNDDOWN(F11/4,-3)*2.4+100000,IF(F11<=3599999,ROUNDDOWN(F11/4,-3)*2.8-80000,IF(F11<=6599999,ROUNDDOWN(F11/4,-3)*3.2-440000,IF(F11<=8499999,F11*0.9-1100000,IF(F11>=8500000,F11-1950000)))))))))))))) -> 0 | I11: =IF(AND(H11="該当",J11="有",F11>8500000),ROUNDDOWN((G11+L23)*3/10,0)-L23,IF(H11="該当",ROUNDDOWN(G11*3/10,0),G11)) -> 0 | L11: =IF(G11+N11>20000000,IF(K11>10000000,K11-(1955000-200000),IF(K11>7700000,K11*0.95-(1455000-200000),IF(K11>4100000,K11*0.85-(685000-200000),IF(B11>=65,IF(K11<=(1100000-200000),0,IF(K11<=3300000,K11-(1100000-200000),IF(K11<=4100000,K11*0.75-(275000-200000)))),IF(K11<=(600000-200000),0,IF(K11<=1300000,K11-(600000-200000),IF(K11<=4100000,K11*0.75-(275000-200000)))))))),IF(G11+N11>10000000,IF(K11>10000000,K11-(1955000-100000),IF(K11>7700000,K11*0.95-(1455000-100000),IF(K11>4100000,K11*0.85-(685000-100000),IF(B11>=65,IF(K11<=(1100000-100000),0,IF(K11<=3300000,K11-(1100000-100000),IF(K11<=4100000,K11*0.75-(275000-100000)))),IF(K11<=(600000-100000),0,IF(K11<=1300000,K11-(600000-100000),IF(K11<=4100000,K11*0.75-(275000-100000)))))))),IF(K11>10000000,K11-1955000,IF(K11>7700000,K11*0.95-1455000,IF(K11>4100000,K11*0.85-685000,IF(B11>=65,IF(K11<=1100000,0,IF(K11<=3300000,K11-1100000,IF(K11<=4100000,K11*0.75-275000))),IF(K11<=600000,0,IF(K11<=1300000,K11-600000,IF(K11<=4100000,K11*0.75-275000))))))))) -> 0 | M11: =IF(B11>=65,IF(L11>=150000,150000,L11),0) -> 0 | O11: =IF(ISBLANK(B11),0,IF(G11+L11+N11<=24000000,430000,IF(G11+L11+N11<=24500000,290000,IF(G11+L11+N11<=25000000,150000,IF(G11+L11+N11>25000000,0))))) -> 0 | P11: =IF(I11+L11+N11-O11-R11<=0,0,I11+L11+N11-O11-R11) -> 0 | Q11: =IF(OR(G11>0,L11>0),"○","") ->  | R11: =IF(G11+L11>100000,IF(AND(G11>0,L11>0),IF(AND(G11>=100000,L11>=100000),100000,MIN((G11+L11-100000),G11,L11)),0),) -> 0 | S11: =IF(B77=65,0,IF(COUNT(D12:D12)=0,0,P11)) -> 0 | V11: =IF(OR(AND(ISBLANK(B11),E11=1),AND(E11=0,B11<>"")),"×","") ->  | W11: =IF(OR(AND(B11<設定シート!$E$22,E12=1),AND(B11>=設定シート!$E$23,E12=1),AND(B11>=設定シート!$E$22,B11<設定シート!$E$23,E12<>1)),"×","") ->  | AB11: =IF(OR(AND(F11<>"",B11=""),(AND(K11<>"",B11="")),(AND(N11<>"",B11=""))),"加入者Dの年齢を入力してください","") ->  | AE11: =IF(OR(AND(ISBLANK(B11),E11=1),(AND(ISNUMBER(B11),E11=0))),"加入者Dの資格設定ボタンをクリックして資格を設定してください","") -> 
E12: =COUNTIF(D12:D12,"4") -> 0
A13: 加入者E | C13: =IF((B13>=設定シート!$E$22)*AND(B13<設定シート!$E$23),"○","") ->  | E13: 0 | G13: =IF(設定シート!$E$3>=8,IF(AND(J13="有",F13>10000000),F13-1950000-150000,IF(AND(J13="有",F13>8500000,F13<=10000000),ROUNDDOWN((F13-1950000)-((F13-8500000)*0.1),),IF(F13<=650000,0,IF(F13<=1900000,F13-650000,IF(F13<=3599999,ROUNDDOWN(F13/4,-3)*2.8-80000,IF(F13<=6599999,ROUNDDOWN(F13/4,-3)*3.2-440000,IF(F13<=8499999,F13*0.9-1100000,IF(F13>=8500000,F13-1950000)))))))),IF(AND(J13="有",F13>10000000),F13-1950000-150000,IF(AND(J13="有",F13>8500000,F13<=10000000),ROUNDDOWN((F13-1950000)-((F13-8500000)*0.1),),IF(F13<=550000,0,IF(F13<1619000,F13-550000,IF(F13<=1619999,1069000,IF(F13<=1621999,1070000,IF(F13<=1623999,1072000,IF(F13<=1627999,1074000,IF(F13<=1799999,ROUNDDOWN(F13/4,-3)*2.4+100000,IF(F13<=3599999,ROUNDDOWN(F13/4,-3)*2.8-80000,IF(F13<=6599999,ROUNDDOWN(F13/4,-3)*3.2-440000,IF(F13<=8499999,F13*0.9-1100000,IF(F13>=8500000,F13-1950000)))))))))))))) -> 0 | I13: =IF(AND(H13="該当",J13="有",F13>8500000),ROUNDDOWN((G13+L25)*3/10,0)-L25,IF(H13="該当",ROUNDDOWN(G13*3/10,0),G13)) -> 0 | L13: =IF(G13+N13>20000000,IF(K13>10000000,K13-(1955000-200000),IF(K13>7700000,K13*0.95-(1455000-200000),IF(K13>4100000,K13*0.85-(685000-200000),IF(B13>=65,IF(K13<=(1100000-200000),0,IF(K13<=3300000,K13-(1100000-200000),IF(K13<=4100000,K13*0.75-(275000-200000)))),IF(K13<=(600000-200000),0,IF(K13<=1300000,K13-(600000-200000),IF(K13<=4100000,K13*0.75-(275000-200000)))))))),IF(G13+N13>10000000,IF(K13>10000000,K13-(1955000-100000),IF(K13>7700000,K13*0.95-(1455000-100000),IF(K13>4100000,K13*0.85-(685000-100000),IF(B13>=65,IF(K13<=(1100000-100000),0,IF(K13<=3300000,K13-(1100000-100000),IF(K13<=4100000,K13*0.75-(275000-100000)))),IF(K13<=(600000-100000),0,IF(K13<=1300000,K13-(600000-100000),IF(K13<=4100000,K13*0.75-(275000-100000)))))))),IF(K13>10000000,K13-1955000,IF(K13>7700000,K13*0.95-1455000,IF(K13>4100000,K13*0.85-685000,IF(B13>=65,IF(K13<=1100000,0,IF(K13<=3300000,K13-1100000,IF(K13<=4100000,K13*0.75-275000))),IF(K13<=600000,0,IF(K13<=1300000,K13-600000,IF(K13<=4100000,K13*0.75-275000))))))))) -> 0 | M13: =IF(B13>=65,IF(L13>=150000,150000,L13),0) -> 0 | O13: =IF(ISBLANK(B13),0,IF(G13+L13+N13<=24000000,430000,IF(G13+L13+N13<=24500000,290000,IF(G13+L13+N13<=25000000,150000,IF(G13+L13+N13>25000000,0))))) -> 0 | P13: =IF(I13+L13+N13-O13-R13<=0,0,I13+L13+N13-O13-R13) -> 0 | Q13: =IF(OR(G13>0,L13>0),"○","") ->  | R13: =IF(G13+L13>100000,IF(AND(G13>0,L13>0),IF(AND(G13>=100000,L13>=100000),100000,MIN((G13+L13-100000),G13,L13)),0),) -> 0 | S13: =IF(B79=65,0,IF(COUNT(D14:D14)=0,0,P13)) -> 0 | V13: =IF(OR(AND(ISBLANK(B13),E13=1),AND(E13=0,B13<>"")),"×","") ->  | W13: =IF(OR(AND(B13<設定シート!$E$22,E14=1),AND(B13>=設定シート!$E$23,E14=1),AND(B13>=設定シート!$E$22,B13<設定シート!$E$23,E14<>1)),"×","") ->  | AB13: =IF(OR(AND(F13<>"",B13=""),(AND(K13<>"",B13="")),(AND(N13<>"",B13=""))),"加入者Eの年齢を入力してください","") ->  | AE13: =IF(OR(AND(ISBLANK(B13),E13=1),(AND(ISNUMBER(B13),E13=0))),"加入者Eの資格設定ボタンをクリックして資格を設定してください","") -> 
E14: 0
A15: 旧被扶 | C15: =IF((B15>=設定シート!$E$22)*AND(B15<設定シート!$E$23),"○","") ->  | E15: =COUNTA(D15:D15) -> 0 | G15: =IF(設定シート!$E$3>=8,IF(AND(J15="有",F15>10000000),F15-1950000-150000,IF(AND(J15="有",F15>8500000,F15<=10000000),ROUNDDOWN((F15-1950000)-((F15-8500000)*0.1),),IF(F15<=650000,0,IF(F15<=1900000,F15-650000,IF(F15<=3599999,ROUNDDOWN(F15/4,-3)*2.8-80000,IF(F15<=6599999,ROUNDDOWN(F15/4,-3)*3.2-440000,IF(F15<=8499999,F15*0.9-1100000,IF(F15>=8500000,F15-1950000)))))))),IF(AND(J15="有",F15>10000000),F15-1950000-150000,IF(AND(J15="有",F15>8500000,F15<=10000000),ROUNDDOWN((F15-1950000)-((F15-8500000)*0.1),),IF(F15<=550000,0,IF(F15<1619000,F15-550000,IF(F15<=1619999,1069000,IF(F15<=1621999,1070000,IF(F15<=1623999,1072000,IF(F15<=1627999,1074000,IF(F15<=1799999,ROUNDDOWN(F15/4,-3)*2.4+100000,IF(F15<=3599999,ROUNDDOWN(F15/4,-3)*2.8-80000,IF(F15<=6599999,ROUNDDOWN(F15/4,-3)*3.2-440000,IF(F15<=8499999,F15*0.9-1100000,IF(F15>=8500000,F15-1950000)))))))))))))) -> 0 | I15: =IF(H15="該当",ROUNDDOWN(G15*3/10,0),G15) -> 0 | L15: =IF(G15+N15>20000000,IF(K15>10000000,K15-(1955000-200000),IF(K15>7700000,K15*0.95-(1455000-200000),IF(K15>4100000,K15*0.85-(685000-200000),IF(B15>=65,IF(K15<=(1100000-200000),0,IF(K15<=3300000,K15-(1100000-200000),IF(K15<=4100000,K15*0.75-(275000-200000)))),IF(K15<=(600000-200000),0,IF(K15<=1300000,K15-(600000-200000),IF(K15<=4100000,K15*0.75-(275000-200000)))))))),IF(G15+N15>10000000,IF(K15>10000000,K15-(1955000-100000),IF(K15>7700000,K15*0.95-(1455000-100000),IF(K15>4100000,K15*0.85-(685000-100000),IF(B15>=65,IF(K15<=(1100000-100000),0,IF(K15<=3300000,K15-(1100000-100000),IF(K15<=4100000,K15*0.75-(275000-100000)))),IF(K15<=(600000-100000),0,IF(K15<=1300000,K15-(600000-100000),IF(K15<=4100000,K15*0.75-(275000-100000)))))))),IF(K15>10000000,K15-1955000,IF(K15>7700000,K15*0.95-1455000,IF(K15>4100000,K15*0.85-685000,IF(B15>=65,IF(K15<=1100000,0,IF(K15<=3300000,K15-1100000,IF(K15<=4100000,K15*0.75-275000))),IF(K15<=600000,0,IF(K15<=1300000,K15-600000,IF(K15<=4100000,K15*0.75-275000))))))))) -> 0 | M15: =IF(B15>=65,IF(L15>=150000,150000,L15),0) -> 0 | O15: =IF(ISBLANK(B15),0,IF(G15+L15+N15<=24000000,430000,IF(G15+L15+N15<=24500000,290000,IF(G15+L15+N15<=25000000,150000,IF(G15+L15+N15>25000000,0))))) -> 0 | P15: =IF(I15+L15+N15-O15-R15<=0,0,I15+L15+N15-O15-R15) -> 0 | Q15: =IF(OR(G15>0,L15>0),"○","") ->  | R15: =IF(G15+L15>100000,IF(AND(G15>0,L15>0),IF(AND(G15>=100000,L15>=100000),100000,MIN((G15+L15-100000),G15,L15)),0),) -> 0 | S15: =IF(COUNT(D16:D16)=0,0,P15) -> 0 | V15: =IF(OR(AND(ISBLANK(B15),E15=1),AND(E15=0,B15<>"")),"×","") ->  | W15: =IF(OR(AND(B15<設定シート!$E$22,E16=1),AND(B15>=設定シート!$E$23,E16=1),AND(B15>=設定シート!$E$22,B15<設定シート!$E$23,E16<>1)),"×","") -> 
A17: 合計 | F17: =SUM(F5:F16) -> 0 | G17: =SUM(G5:G16) -> 0 | I17: =SUM(I5:I16) -> 0 | J17: =SUM(J5:J16) -> 0 | K17: 0 | L17: 0 | M17: 0 | N17: 0 | O17: 0 | P17: 0 | Q17: =COUNTIF(Q5:Q16,"○") -> 0 | R17: =SUM(R5:R16) -> 0 | S17: =SUM(S5:S16) -> 0 | V17: =COUNTIF(V5:V16,"×") -> 0 | W17: =COUNTIF(W5:W16,"×") -> 0 | X17: =V17+W17 -> 0
A19: 国保に加入しない世帯主がいる場合はその所得を入力 | T19: 世帯合計所得 | U19: =I17+L17+N17+H19 -> 0
A20: 後期① 旧国保 所得を直接入力 | J20: 国保加入者数 | K20: =COUNT(B5:B16)+COUNT(H20:H21) -> 0 | L20: （均等割に乗ずる割合） | V20: .
A21: 後期① 旧国保 所得を直接入力 | J21: 政減判定 | T21: 給与年金所得額調整控除 | U21: =-R17 -> 0
A22: 後期高齢者分等を含む合計総所得金額 | H22: =I17+L17+N17+H19+H20+H21 -> 0 | I22: =COUNTIF(I19:I21,"○") -> 0 | J22: =IF(Q17+I22=0,IF(U23<=430000,"均等割７割減",IF(U23<=(430000+(国保加入者数*M54)),"均等割５割減",IF(U23<=(430000+(国保加入者数*M55)),"均等割２割減","政減対象外"))),IF(U23<=(430000+(100000*(Q17-1+I22))),"均等割７割減",IF(U23<=(430000+(国保加入者数*M54)+(100000*(Q17-1+I22))),"均等割５割減",IF(U23<=(430000+(国保加入者数*M55)+(100000*(Q17-1+I22))),"均等割２割減","政減対象外")))) -> 均等割７割減 | L22: =IF(J22="均等割７割減",0.3,IF(J22="均等割５割減",0.5,IF(J22="均等割２割減",0.8,1))) -> 0.3 | T22: 年金特別控除６５以上 | U22: =-M17 -> 0
A23: 加入者の給与調整控除額Ｒ２年度税制改正（Ｒ３以降適用） | I23: =IF(AND(J5="有",F5>10000000),150000,IF(AND(J5="有",F5>8500000,F5<=10000000),((F5-8500000)*0.1),)) -> 0 | J23: =IF(AND(J7="有",F7>10000000),150000,IF(AND(J7="有",F7>8500000,F7<=10000000),((F7-8500000)*0.1),)) -> 0 | K23: =IF(AND(J9="有",F9>10000000),150000,IF(AND(J9="有",F9>8500000,F9<=10000000),((F9-8500000)*0.1),)) -> 0 | L23: =IF(AND(J11="有",F11>10000000),150000,IF(AND(J11="有",F11>8500000,F11<=10000000),((F11-8500000)*0.1),)) -> 0 | M23: =IF(AND(J13="有",F13>10000000),150000,IF(AND(J13="有",F13>8500000,F13<=10000000),((F13-8500000)*0.1),)) -> 0 | T23: 判定基準額 | U23: =SUM(U19:U22) -> 0
N24: 世帯の医療均等割額 | P24: =ROUNDDOWN(((COUNTIFS($D$5:$D$14,1,$B$5:$B$14,">"&$M$57))*(医療均等割/12)*$L$22+(COUNTIFS($D$5:$D$14,1,$B$5:$B$14,"<="&$M$57))*(医療均等割/12)*$L$22*$O$57+COUNTIF($D$15,"◎")*(医療均等割/12)*$L$22*0.5+COUNTIF($D$15,"×")*(医療均等割/12)*$L$22),0) -> 0
C25: 医療分 | F25: 加入者Ａ | G25: 加入者Ｂ | H25: 加入者Ｃ | I25: 加入者Ｄ | J25: 加入者E | K25: 旧被扶養者 | L25: 合 計 | N25: 世帯の支援金均等割額 | P25: =ROUNDDOWN(((COUNTIFS($D$5:$D$14,1,$B$5:$B$14,">"&$M$57))*(支援金均等割/12)*$L$22+(COUNTIFS($D$5:$D$14,1,$B$5:$B$14,"<="&$M$57))*(支援金均等割/12)*$L$22*$O$57+COUNTIF($D$15,"◎")*(支援金均等割/12)*$L$22*0.5+COUNTIF($D$15,"×")*(支援金均等割/12)*$L$22),0) -> 0
F26: =IF(E5=0,0,IF(B5>$M$57,IF(ROUNDDOWN((P5*医療割合/100/12),0)+ROUNDDOWN((医療均等割*$L$22/12),0)>医療限度額/12,ROUNDDOWN(医療限度額/12,0),ROUNDDOWN((P5*医療割合/100/12),0)+ROUNDDOWN((医療均等割*$L$22/12),0)),IF(ROUNDDOWN((P5*医療割合/100/12),0)+ROUNDDOWN((医療均等割*$L$22/12*$O$57),0)>医療限度額/12,ROUNDDOWN(医療限度額/12,0),ROUNDDOWN((P5*医療割合/100/12),0)+ROUNDDOWN((医療均等割*$L$22/12*$O$57),0)))) -> 0 | G26: =IF(E7=0,0,IF(B7>$M$57,IF(ROUNDDOWN((P7*医療割合/100/12),0)+ROUNDDOWN((医療均等割*$L$22/12),0)>医療限度額/12,ROUNDDOWN(医療限度額/12,0),ROUNDDOWN((P7*医療割合/100/12),0)+ROUNDDOWN((医療均等割*$L$22/12),0)),IF(ROUNDDOWN((P7*医療割合/100/12),0)+ROUNDDOWN((医療均等割*$L$22/12*$O$57),0)>医療限度額/12,ROUNDDOWN(医療限度額/12,0),ROUNDDOWN((P7*医療割合/100/12),0)+ROUNDDOWN((医療均等割*$L$22/12*$O$57),0)))) -> 0 | H26: =IF(E9=0,0,IF(B9>$M$57,IF(ROUNDDOWN((P9*医療割合/100/12),0)+ROUNDDOWN((医療均等割*$L$22/12),0)>医療限度額/12,ROUNDDOWN(医療限度額/12,0),ROUNDDOWN((P9*医療割合/100/12),0)+ROUNDDOWN((医療均等割*$L$22/12),0)),IF(ROUNDDOWN((P9*医療割合/100/12),0)+ROUNDDOWN((医療均等割*$L$22/12*$O$57),0)>医療限度額/12,ROUNDDOWN(医療限度額/12,0),ROUNDDOWN((P9*医療割合/100/12),0)+ROUNDDOWN((医療均等割*$L$22/12*$O$57),0)))) -> 0 | I26: =IF(E11=0,0,IF(B11>$M$57,IF(ROUNDDOWN((P11*医療割合/100/12),0)+ROUNDDOWN((医療均等割*$L$22/12),0)>医療限度額/12,ROUNDDOWN(医療限度額/12,0),ROUNDDOWN((P11*医療割合/100/12),0)+ROUNDDOWN((医療均等割*$L$22/12),0)),IF(ROUNDDOWN((P11*医療割合/100/12),0)+ROUNDDOWN((医療均等割*$L$22/12*$O$57),0)>医療限度額/12,ROUNDDOWN(医療限度額/12,0),ROUNDDOWN((P11*医療割合/100/12),0)+ROUNDDOWN((医療均等割*$L$22/12*$O$57),0)))) -> 0 | J26: =IF(E13=0,0,IF(B13>$M$57,IF(ROUNDDOWN((P13*医療割合/100/12),0)+ROUNDDOWN((医療均等割*$L$22/12),0)>医療限度額/12,ROUNDDOWN(医療限度額/12,0),ROUNDDOWN((P13*医療割合/100/12),0)+ROUNDDOWN((医療均等割*$L$22/12),0)),IF(ROUNDDOWN((P13*医療割合/100/12),0)+ROUNDDOWN((医療均等割*$L$22/12*$O$57),0)>医療限度額/12,ROUNDDOWN(医療限度額/12,0),ROUNDDOWN((P13*医療割合/100/12),0)+ROUNDDOWN((医療均等割*$L$22/12*$O$57),0)))) -> 0 | K26: =ROUNDDOWN(COUNTIF($D$15,"◎")*(医療均等割/12)*$L$22*0.5+COUNTIF($D$15,"×")*(医療均等割/12)*$L$22,0) -> 0 | L26: =IF(SUM(F26:K26)>=医療限度額/12,ROUNDDOWN(医療限度額/12,0),SUM(F26:K26)) -> 0 | M26: =IF(E13=0,0,IF(B13>$M$57,ROUNDDOWN((P13*医療割合/100/12),0)+ROUNDDOWN((医療均等割*$L$22/12),0),ROUNDDOWN((P13*医療割合/100/12),0)+ROUNDDOWN((医療均等割*$L$22/12*$O$57),0)))+IF(E5=0,0,IF(B5>$M$57,ROUNDDOWN((P5*医療割合/100/12),0)+ROUNDDOWN((医療均等割*$L$22/12),0),ROUNDDOWN((P5*医療割合/100/12),0)+ROUNDDOWN((医療均等割*$L$22/12*$O$57),0)))+IF(E7=0,0,IF(B7>$M$57,ROUNDDOWN((P7*医療割合/100/12),0)+ROUNDDOWN((医療均等割*$L$22/12),0),ROUNDDOWN((P7*医療割合/100/12),0)+ROUNDDOWN((医療均等割*$L$22/12*$O$57),0)))+IF(E9=0,0,IF(B9>$M$57,ROUNDDOWN((P9*医療割合/100/12),0)+ROUNDDOWN((医療均等割*$L$22/12),0),ROUNDDOWN((P9*医療割合/100/12),0)+ROUNDDOWN((医療均等割*$L$22/12*$O$57),0)))+IF(E11=0,0,IF(B11>$M$57,ROUNDDOWN((P11*医療割合/100/12),0)+ROUNDDOWN((医療均等割*$L$22/12),0),ROUNDDOWN((P11*医療割合/100/12),0)+ROUNDDOWN((医療均等割*$L$22/12*$O$57),0)))+ROUNDDOWN(IF($L$22>0.5,COUNTIF(D15:D15,"◎")*医療均等割/12*0.5+COUNTIF(D15:D15,"×")*医療均等割/12*$L$22,(COUNTA(D15:D15)*医療均等割/12*$L$22)),0) -> 0 | N26: 世帯の介護均等割額 | P26: =ROUNDDOWN((COUNTIF($D$5:$D$14,4)-COUNTIF(B74:B77,設定シート!$E$23))*介護均等割/12*$L$22,0) -> 0
C27: =IF(M26>=L26,"按分額","") -> 按分額 | F27: =IF($M$26>=ROUNDDOWN(医療限度額/12,0),IF(ISBLANK(B5),0,IF(B5<=$M$57,IF(P5=0,医療均等割/12*$O$57,($L$26-$P$24)*P5/$P$17+医療均等割/12*$O$57),IF(P5=0,医療均等割/12,($L$26-$P$24)*P5/$P$17+医療均等割/12))),0) -> 0 | G27: =IF($M$26>=ROUNDDOWN(医療限度額/12,0),IF(ISBLANK(B7),0,IF(B7<=$M$57,IF(P7=0,医療均等割/12*$O$57,($L$26-$P$24)*P7/$P$17+医療均等割/12*$O$57),IF(P7=0,医療均等割/12,($L$26-$P$24)*P7/$P$17+医療均等割/12))),0) -> 0 | H27: =IF($M$26>=ROUNDDOWN(医療限度額/12,0),IF(ISBLANK(B9),0,IF(B9<=$M$57,IF(P9=0,医療均等割/12*$O$57,($L$26-$P$24)*P9/$P$17+医療均等割/12*$O$57),IF(P9=0,医療均等割/12,($L$26-$P$24)*P9/$P$17+医療均等割/12))),0) -> 0 | I27: =IF($M$26>=ROUNDDOWN(医療限度額/12,0),IF(ISBLANK(B11),0,IF(B11<=$M$57,IF(P11=0,医療均等割/12*$O$57,($L$26-$P$24)*P11/$P$17+医療均等割/12*$O$57),IF(P11=0,医療均等割/12,($L$26-$P$24)*P11/$P$17+医療均等割/12))),0) -> 0 | J27: =IF($M$26>=ROUNDDOWN(医療限度額/12,0),IF(ISBLANK(B13),0,IF(B13<=$M$57,IF(P13=0,医療均等割/12*$O$57,($L$26-$P$24)*P13/$P$17+医療均等割/12*$O$57),IF(P13=0,医療均等割/12,($L$26-$P$24)*P13/$P$17+医療均等割/12))),0) -> 0 | K27: =IF($M$26>=ROUNDDOWN(医療限度額/12,0),IF(ISBLANK(B15),0,IF(D15="◎",医療均等割/12*0.5,IF(D15="×",医療均等割/12))),0) -> 0 | L27: =SUM(F27:K27) -> 0 | N27: =IF(設定シート!E3<=7,"",TRIM("世帯の"&設定シート!C17&"均等割額")) -> 世帯の子育て支援分均等割額 | P27: =IF(設定シート!E3<=7,0,ROUNDDOWN(((COUNTIFS($D$5:$D$14,1,$B$5:$B$14,">"&$M$58))*(子ども支援金均等割/12)*$L$22+(COUNTIFS($D$5:$D$14,1,$B$5:$B$14,"<="&$M$58,$B$5:$B$14,"<="&$M$57))*(子ども支援金均等割/12*$M$59)*$L$22*$O$57+(COUNTIFS($D$5:$D$14,1,$B$5:$B$14,"<="&$M$58,$B$5:$B$14,">"&$M$57))*(子ども支援金均等割/12*$M$59)*$L$22+COUNTIF($D$15,"◎")*(子ども支援金均等割/12)*$L$22*0.5+COUNTIF($D$15,"×")*(子ども支援金均等割/12)*$L$22),0)) -> 0
N28: Ｒ４以降の保険料に反映
C29: 支援分 | F29: 加入者Ａ | G29: 加入者Ｂ | H29: 加入者Ｃ | I29: 加入者Ｄ | J29: 加入者E | K29: 旧被扶養者 | L29: 合 計 | N29: 未就学児の人数 | P29: =COUNTIF(B5:B14,"<="&$M$57) -> 0
F30: =IF(E5=0,0,IF(B5>$M$57,IF(ROUNDDOWN((P5*支援金割合/100/12),0)+ROUNDDOWN((支援金均等割*$L$22/12),0)>支援金限度額/12,ROUNDDOWN(支援金限度額/12,0),ROUNDDOWN((P5*支援金割合/100/12),0)+ROUNDDOWN((支援金均等割*$L$22/12),0)),IF(ROUNDDOWN((P5*支援金割合/100/12),0)+ROUNDDOWN((支援金均等割*$L$22/12*$O$57),0)>支援金限度額/12,ROUNDDOWN(支援金限度額/12,0),ROUNDDOWN((P5*支援金割合/100/12),0)+ROUNDDOWN((支援金均等割*$L$22/12*$O$57),0)))) -> 0 | G30: =IF(E7=0,0,IF(B7>$M$57,IF(ROUNDDOWN((P7*支援金割合/100/12),0)+ROUNDDOWN((支援金均等割*$L$22/12),0)>支援金限度額/12,ROUNDDOWN(支援金限度額/12,0),ROUNDDOWN((P7*支援金割合/100/12),0)+ROUNDDOWN((支援金均等割*$L$22/12),0)),IF(ROUNDDOWN((P7*支援金割合/100/12),0)+ROUNDDOWN((支援金均等割*$L$22/12*$O$57),0)>支援金限度額/12,ROUNDDOWN(支援金限度額/12,0),ROUNDDOWN((P7*支援金割合/100/12),0)+ROUNDDOWN((支援金均等割*$L$22/12*$O$57),0)))) -> 0 | H30: =IF(E9=0,0,IF(B9>$M$57,IF(ROUNDDOWN((P9*支援金割合/100/12),0)+ROUNDDOWN((支援金均等割*$L$22/12),0)>支援金限度額/12,ROUNDDOWN(支援金限度額/12,0),ROUNDDOWN((P9*支援金割合/100/12),0)+ROUNDDOWN((支援金均等割*$L$22/12),0)),IF(ROUNDDOWN((P9*支援金割合/100/12),0)+ROUNDDOWN((支援金均等割*$L$22/12*$O$57),0)>支援金限度額/12,ROUNDDOWN(支援金限度額/12,0),ROUNDDOWN((P9*支援金割合/100/12),0)+ROUNDDOWN((支援金均等割*$L$22/12*$O$57),0)))) -> 0 | I30: =IF(E11=0,0,IF(B11>$M$57,IF(ROUNDDOWN((P11*支援金割合/100/12),0)+ROUNDDOWN((支援金均等割*$L$22/12),0)>支援金限度額/12,ROUNDDOWN(支援金限度額/12,0),ROUNDDOWN((P11*支援金割合/100/12),0)+ROUNDDOWN((支援金均等割*$L$22/12),0)),IF(ROUNDDOWN((P11*支援金割合/100/12),0)+ROUNDDOWN((支援金均等割*$L$22/12*$O$57),0)>支援金限度額/12,ROUNDDOWN(支援金限度額/12,0),ROUNDDOWN((P11*支援金割合/100/12),0)+ROUNDDOWN((支援金均等割*$L$22/12*$O$57),0)))) -> 0 | J30: =IF(E13=0,0,IF(B13>$M$57,IF(ROUNDDOWN((P13*支援金割合/100/12),0)+ROUNDDOWN((支援金均等割*$L$22/12),0)>支援金限度額/12,ROUNDDOWN(支援金限度額/12,0),ROUNDDOWN((P13*支援金割合/100/12),0)+ROUNDDOWN((支援金均等割*$L$22/12),0)),IF(ROUNDDOWN((P13*支援金割合/100/12),0)+ROUNDDOWN((支援金均等割*$L$22/12*$O$57),0)>支援金限度額/12,ROUNDDOWN(支援金限度額/12,0),ROUNDDOWN((P13*支援金割合/100/12),0)+ROUNDDOWN((支援金均等割*$L$22/12*$O$57),0)))) -> 0 | K30: =ROUNDDOWN(COUNTIF($D$15,"◎")*(支援金均等割/12)*$L$22*0.5+COUNTIF($D$15,"×")*(支援金均等割/12)*$L$22,0) -> 0 | L30: =IF(SUM(F30:K30)>=支援金限度額/12,ROUNDDOWN(支援金限度額/12,0),SUM(F30:K30)) -> 0 | M30: =IF(E13=0,0,IF(B13>$M$57,ROUNDDOWN((P13*支援金割合/100/12),0)+ROUNDDOWN((支援金均等割*$L$22/12),0),ROUNDDOWN((P13*支援金割合/100/12),0)+ROUNDDOWN((支援金均等割*$L$22/12*$O$57),0)))+IF(E5=0,0,IF(B5>$M$57,ROUNDDOWN((P5*支援金割合/100/12),0)+ROUNDDOWN((支援金均等割*$L$22/12),0),ROUNDDOWN((P5*支援金割合/100/12),0)+ROUNDDOWN((支援金均等割*$L$22/12*$O$57),0)))+IF(E7=0,0,IF(B7>$M$57,ROUNDDOWN((P7*支援金割合/100/12),0)+ROUNDDOWN((支援金均等割*$L$22/12),0),ROUNDDOWN((P7*支援金割合/100/12),0)+ROUNDDOWN((支援金均等割*$L$22/12*$O$57),0)))+IF(E9=0,0,IF(B9>$M$57,ROUNDDOWN((P9*支援金割合/100/12),0)+ROUNDDOWN((支援金均等割*$L$22/12),0),ROUNDDOWN((P9*支援金割合/100/12),0)+ROUNDDOWN((支援金均等割*$L$22/12*$O$57),0)))+IF(E11=0,0,IF(B11>$M$57,ROUNDDOWN((P11*支援金割合/100/12),0)+ROUNDDOWN((支援金均等割*$L$22/12),0),ROUNDDOWN((P11*支援金割合/100/12),0)+ROUNDDOWN((支援金均等割*$L$22/12*$O$57),0)))+ROUNDDOWN(IF($L$22>0.5,COUNTIF(D15:D15,"◎")*支援金均等割/12*0.5+COUNTIF(D15:D15,"×")*支援金均等割/12*$L$22,(COUNTA(D15:D15)*支援金均等割/12*$L$22)),0) -> 0 | N30: Aの月数 (未就学児の場合) | P30: =IF(B5<=$M$57,COUNTIF(D5:D5,1),0) -> 0
C31: =IF(M30>=L30,"按分額","") -> 按分額 | F31: =IF($M$30>=ROUNDDOWN(支援金限度額/12,0),IF(ISBLANK(B5),0,IF(B5<=$M$57,IF(P5=0,支援金均等割/12*$O$57,($L$30-$P$25)*P5/$P$17+支援金均等割/12*$O$57),IF(P5=0,支援金均等割/12,($L$30-$P$25)*P5/$P$17+支援金均等割/12))),0) -> 0 | G31: =IF($M$30>=ROUNDDOWN(支援金限度額/12,0),IF(ISBLANK(B7),0,IF(B7<=$M$57,IF(P7=0,支援金均等割/12*$O$57,($L$30-$P$25)*P7/$P$17+支援金均等割/12*$O$57),IF(P7=0,支援金均等割/12,($L$30-$P$25)*P7/$P$17+支援金均等割/12))),0) -> 0 | H31: =IF($M$30>=ROUNDDOWN(支援金限度額/12,0),IF(ISBLANK(B9),0,IF(B9<=$M$57,IF(P9=0,支援金均等割/12*$O$57,($L$30-$P$25)*P9/$P$17+支援金均等割/12*$O$57),IF(P9=0,支援金均等割/12,($L$30-$P$25)*P9/$P$17+支援金均等割/12))),0) -> 0 | I31: =IF($M$30>=ROUNDDOWN(支援金限度額/12,0),IF(ISBLANK(B11),0,IF(B11<=$M$57,IF(P11=0,支援金均等割/12*$O$57,($L$30-$P$25)*P11/$P$17+支援金均等割/12*$O$57),IF(P11=0,支援金均等割/12,($L$30-$P$25)*P11/$P$17+支援金均等割/12))),0) -> 0 | J31: =IF($M$30>=ROUNDDOWN(支援金限度額/12,0),IF(ISBLANK(B13),0,IF(B13<=$M$57,IF(P13=0,支援金均等割/12*$O$57,($L$30-$P$25)*P13/$P$17+支援金均等割/12*$O$57),IF(P13=0,支援金均等割/12,($L$30-$P$25)*P13/$P$17+支援金均等割/12))),0) -> 0 | K31: =IF($M$26>=ROUNDDOWN(支援金限度額/12,0),IF(ISBLANK(B15),0,IF(D15="◎",支援金均等割/12*0.5,IF(D15="×",支援金均等割/12))),0) -> 0 | L31: =SUM(F31:K31) -> 0 | N31: Bの月数 (未就学児の場合) | P31: =IF(B7<=$M$57,COUNTIF(D7:D7,1),0) -> 0
N32: Cの月数 (未就学児の場合) | P32: =IF(B9<=$M$57,COUNTIF(D9:D9,1),0) -> 0
C33: 介護分 | F33: 加入者Ａ | G33: 加入者Ｂ | H33: 加入者Ｃ | I33: 加入者Ｄ | J33: 加入者E | K33: 旧被扶養者 | L33: 合 計 | N33: Dの月数 (未就学児の場合) | P33: =IF(B11<=$M$57,COUNTIF(D11:D11,1),0) -> 0
F34: =IF(B69=設定シート!$E$23,0,IF(E6=0,0,IF(B5>=設定シート!$E$22,IF(ROUNDDOWN((P5*介護割合/100/12),0)+ROUNDDOWN((介護均等割*$L$22/12),0)>介護限度額/12,ROUNDDOWN(介護限度額/12,0),ROUNDDOWN((P5*介護割合/100/12),0)+ROUNDDOWN((介護均等割*$L$22/12),0))))) -> 0 | G34: =IF(B70=設定シート!$E$23,0,IF(E8=0,0,IF(B7>=設定シート!$E$22,IF(ROUNDDOWN((P7*介護割合/100/12),0)+ROUNDDOWN((介護均等割*$L$22/12),0)>介護限度額/12,ROUNDDOWN(介護限度額/12,0),ROUNDDOWN((P7*介護割合/100/12),0)+ROUNDDOWN((介護均等割*$L$22/12),0))))) -> 0 | H34: =IF(B71=設定シート!$E$23,0,IF(E10=0,0,IF(B9>=設定シート!$E$22,IF(ROUNDDOWN((P9*介護割合/100/12),0)+ROUNDDOWN((介護均等割*$L$22/12),0)>介護限度額/12,ROUNDDOWN(介護限度額/12,0),ROUNDDOWN((P9*介護割合/100/12),0)+ROUNDDOWN((介護均等割*$L$22/12),0))))) -> 0 | I34: =IF(B72=設定シート!$E$23,0,IF(E12=0,0,IF(B11>=設定シート!$E$22,IF(ROUNDDOWN((P11*介護割合/100/12),0)+ROUNDDOWN((介護均等割*$L$22/12),0)>介護限度額/12,ROUNDDOWN(介護限度額/12,0),ROUNDDOWN((P11*介護割合/100/12),0)+ROUNDDOWN((介護均等割*$L$22/12),0))))) -> 0 | J34: =IF(B73=設定シート!$E$23,0,IF(E14=0,0,IF(B13>=設定シート!$E$22,IF(ROUNDDOWN((P13*介護割合/100/12),0)+ROUNDDOWN((介護均等割*$L$22/12),0)>介護限度額/12,ROUNDDOWN(介護限度額/12,0),ROUNDDOWN((P13*介護割合/100/12),0)+ROUNDDOWN((介護均等割*$L$22/12),0))))) -> 0 | L34: =IF(SUM(F34:K34)>=介護限度額/12,ROUNDDOWN(介護限度額/12,0),SUM(F34:K34)) -> 0 | M34: =IF(E14=0,0,IF(AND(B13>=設定シート!$E$22,B78<>設定シート!$E$23),ROUNDDOWN((S13*介護割合/100/12),0)+ROUNDDOWN((介護均等割*$L$22/12),0)))+IF(E6=0,0,IF(AND(B5>=設定シート!$E$22,B74<>設定シート!$E$23),ROUNDDOWN((S5*介護割合/100/12),0)+ROUNDDOWN((介護均等割*$L$22/12),0)))+IF(E8=0,0,IF(AND(B7>=設定シート!$E$22,B75<>設定シート!$E$23),ROUNDDOWN((S7*介護割合/100/12),0)+ROUNDDOWN((介護均等割*$L$22/12),0)))+IF(E10=0,0,IF(AND(B9>=設定シート!$E$22,B76<>設定シート!$E$23),ROUNDDOWN((S9*介護割合/100/12),0)+ROUNDDOWN((介護均等割*$L$22/12),0)))+IF(E12=0,0,IF(AND(B11>=設定シート!$E$22,B77<>設定シート!$E$23),ROUNDDOWN((S11*介護割合/100/12),0)+ROUNDDOWN((介護均等割*$L$22/12),0))) -> 0 | N34: Eの月数 (未就学児の場合) | P34: =IF(B13<=$M$57,COUNTIF(D13:D13,1),0) -> 0
C35: =IF(M34>=L34,"按分額","") -> 按分額 | F35: =IF(F34=0,0,IF(B74=設定シート!$E$23,0,IF($M$34>=ROUNDDOWN(介護限度額/12,0),IF(OR(ISBLANK(B5),B5<設定シート!$E$22),0,IF(S5=0,介護均等割/12*$L$22,($L$34-$P$26)*S5/$S$17+介護均等割/12)),0))) -> 0 | G35: =IF(G34=0,0,IF(B75=設定シート!$E$23,0,IF($M$34>=ROUNDDOWN(介護限度額/12,0),IF(OR(ISBLANK(B7),B7<設定シート!$E$22),0,IF(S7=0,介護均等割/12*$L$22,($L$34-$P$26)*S7/$S$17+介護均等割/12)),0))) -> 0 | H35: =IF(H34=0,0,IF(B76=設定シート!$E$23,0,IF($M$34>=ROUNDDOWN(介護限度額/12,0),IF(OR(ISBLANK(B9),B9<設定シート!$E$22),0,IF(S9=0,介護均等割/12*$L$22,($L$34-$P$26)*S9/$S$17+介護均等割/12)),0))) -> 0 | I35: =IF(I34=0,0,IF(B77=設定シート!$E$23,0,IF($M$34>=ROUNDDOWN(介護限度額/12,0),IF(OR(ISBLANK(B11),B11<設定シート!$E$22),0,IF(S11=0,介護均等割/12*$L$22,($L$34-$P$26)*S11/$S$17+介護均等割/12)),0))) -> 0 | J35: =IF(J34=0,0,IF(B78=設定シート!$E$23,0,IF($M$34>=ROUNDDOWN(介護限度額/12,0),IF(OR(ISBLANK(B13),B13<設定シート!$E$22),0,IF(S13=0,介護均等割/12*$L$22,($L$34-$P$26)*S13/$S$17+介護均等割/12)),0))) -> 0 | L35: =SUM(F35:K35) -> 0 | N35: 未就学児の合計月数 | P35: =SUM(P30:P34) -> 0
C36: 子ども支援金分 (Ｒ８より追加) | N36: 世帯年間保険料
C37: =IF(設定シート!E3<=7,"",設定シート!C17) -> 子育て支援分 | F37: 加入者Ａ | G37: 加入者Ｂ | H37: 加入者Ｃ | I37: 加入者Ｄ | J37: 加入者E | K37: 旧被扶養者 | L37: 合 計 | N37: =加入者別年間保険料!J21 -> 0
F38: =IF(設定シート!E3<=7,0,IF(E5=0,0,IF(B5<=$M$57,ROUNDDOWN(P5*子ども支援金割合/100/12,0)+ROUNDDOWN((子ども支援金均等割*$L$22/12*$M$59*$O$57),0),IF(B5>$M$58,IF(ROUNDDOWN((P5*子ども支援金割合/100/12),0)+ROUNDDOWN((子ども支援金均等割*$L$22/12),0)>子ども支援金限度額/12,子ども支援金限度額/12,ROUNDDOWN((P5*子ども支援金割合/100/12),0)+ROUNDDOWN((子ども支援金均等割*$L$22/12),0)),IF(ROUNDDOWN((P5*子ども支援金割合/100/12),0)+ROUNDDOWN((子ども支援金均等割*$L$22/12*$M$59),0)>子ども支援金限度額/12,子ども支援金限度額/12,ROUNDDOWN((P5*子ども支援金割合/100/12),0)+ROUNDDOWN((子ども支援金均等割*$L$22/12*$M$59),0)))))) -> 0 | G38: =IF(設定シート!E3<=7,0,IF(E7=0,0,IF(B7<=$M$57,ROUNDDOWN(P7*子ども支援金割合/100/12,0)+ROUNDDOWN((子ども支援金均等割*$L$22/12*$M$59*$O$57),0),IF(B7>$M$58,IF(ROUNDDOWN((P7*子ども支援金割合/100/12),0)+ROUNDDOWN((子ども支援金均等割*$L$22/12),0)>子ども支援金限度額/12,子ども支援金限度額/12,ROUNDDOWN((P7*子ども支援金割合/100/12),0)+ROUNDDOWN((子ども支援金均等割*$L$22/12),0)),IF(ROUNDDOWN((P7*子ども支援金割合/100/12),0)+ROUNDDOWN((子ども支援金均等割*$L$22/12*$M$59),0)>子ども支援金限度額/12,子ども支援金限度額/12,ROUNDDOWN((P7*子ども支援金割合/100/12),0)+ROUNDDOWN((子ども支援金均等割*$L$22/12*$M$59),0)))))) -> 0 | H38: =IF(設定シート!E3<=7,0,IF(E9=0,0,IF(B9<=$M$57,ROUNDDOWN(P9*子ども支援金割合/100/12,0)+ROUNDDOWN((子ども支援金均等割*$L$22/12*$M$59*$O$57),0),IF(B9>$M$58,IF(ROUNDDOWN((P9*子ども支援金割合/100/12),0)+ROUNDDOWN((子ども支援金均等割*$L$22/12),0)>子ども支援金限度額/12,子ども支援金限度額/12,ROUNDDOWN((P9*子ども支援金割合/100/12),0)+ROUNDDOWN((子ども支援金均等割*$L$22/12),0)),IF(ROUNDDOWN((P9*子ども支援金割合/100/12),0)+ROUNDDOWN((子ども支援金均等割*$L$22/12*$M$59),0)>子ども支援金限度額/12,子ども支援金限度額/12,ROUNDDOWN((P9*子ども支援金割合/100/12),0)+ROUNDDOWN((子ども支援金均等割*$L$22/12*$M$59),0)))))) -> 0 | I38: =IF(設定シート!E3<=7,0,IF(E11=0,0,IF(B11<=$M$57,ROUNDDOWN(P11*子ども支援金割合/100/12,0)+ROUNDDOWN((子ども支援金均等割*$L$22/12*$M$59*$O$57),0),IF(B11>$M$58,IF(ROUNDDOWN((P11*子ども支援金割合/100/12),0)+ROUNDDOWN((子ども支援金均等割*$L$22/12),0)>子ども支援金限度額/12,子ども支援金限度額/12,ROUNDDOWN((P11*子ども支援金割合/100/12),0)+ROUNDDOWN((子ども支援金均等割*$L$22/12),0)),IF(ROUNDDOWN((P11*子ども支援金割合/100/12),0)+ROUNDDOWN((子ども支援金均等割*$L$22/12*$M$59),0)>子ども支援金限度額/12,子ども支援金限度額/12,ROUNDDOWN((P11*子ども支援金割合/100/12),0)+ROUNDDOWN((子ども支援金均等割*$L$22/12*$M$59),0)))))) -> 0 | J38: =IF(設定シート!E3<=7,0,IF(E13=0,0,IF(B13<=$M$57,ROUNDDOWN(P13*子ども支援金割合/100/12,0)+ROUNDDOWN((子ども支援金均等割*$L$22/12*$M$59*$O$57),0),IF(B13>$M$58,IF(ROUNDDOWN((P13*子ども支援金割合/100/12),0)+ROUNDDOWN((子ども支援金均等割*$L$22/12),0)>子ども支援金限度額/12,子ども支援金限度額/12,ROUNDDOWN((P13*子ども支援金割合/100/12),0)+ROUNDDOWN((子ども支援金均等割*$L$22/12),0)),IF(ROUNDDOWN((P13*子ども支援金割合/100/12),0)+ROUNDDOWN((子ども支援金均等割*$L$22/12*$M$59),0)>子ども支援金限度額/12,子ども支援金限度額/12,ROUNDDOWN((P13*子ども支援金割合/100/12),0)+ROUNDDOWN((子ども支援金均等割*$L$22/12*$M$59),0)))))) -> 0 | K38: =ROUNDDOWN(COUNTIF($D$15,"◎")*(子ども支援金均等割/12)*$L$22*0.5+COUNTIF($D$15,"×")*(子ども支援金均等割/12)*$L$22,0) -> 0 | L38: =IF(SUM(F38:K38)>=子ども支援金限度額/12,ROUNDDOWN(子ども支援金限度額/12,0),SUM(F38:K38)) -> 0 | M38: =IF(E13=0,0,IF(B13>$M$57,ROUNDDOWN((P13*子ども支援金割合/100/12),0)+ROUNDDOWN((子ども支援金均等割*$L$22/12),0),ROUNDDOWN((P13*子ども支援金割合/100/12),0)+ROUNDDOWN((子ども支援金均等割*$L$22/12*$O$57),0)))+IF(E5=0,0,IF(B5>$M$57,ROUNDDOWN((P5*子ども支援金割合/100/12),0)+ROUNDDOWN((子ども支援金均等割*$L$22/12),0),ROUNDDOWN((P5*子ども支援金割合/100/12),0)+ROUNDDOWN((子ども支援金均等割*$L$22/12*$O$57),0)))+IF(E7=0,0,IF(B7>$M$57,ROUNDDOWN((P7*子ども支援金割合/100/12),0)+ROUNDDOWN((子ども支援金均等割*$L$22/12),0),ROUNDDOWN((P7*子ども支援金割合/100/12),0)+ROUNDDOWN((子ども支援金均等割*$L$22/12*$O$57),0)))+IF(E9=0,0,IF(B9>$M$57,ROUNDDOWN((P9*子ども支援金割合/100/12),0)+ROUNDDOWN((子ども支援金均等割*$L$22/12),0),ROUNDDOWN((P9*子ども支援金割合/100/12),0)+ROUNDDOWN((子ども支援金均等割*$L$22/12*$O$57),0)))+IF(E11=0,0,IF(B11>$M$57,ROUNDDOWN((P11*子ども支援金割合/100/12),0)+ROUNDDOWN((子ども支援金均等割*$L$22/12),0),ROUNDDOWN((P11*子ども支援金割合/100/12),0)+ROUNDDOWN((子ども支援金均等割*$L$22/12*$O$57),0)))+ROUNDDOWN(IF($L$22>0.5,COUNTIF(D15:D15,"◎")*子ども支援金均等割/12*0.5+COUNTIF(D15:D15,"×")*子ども支援金均等割/12*$L$22,(COUNTA(D15:D15)*子ども支援金均等割/12*$L$22)),0) -> 0
C39: =IF(M38>=L38,"按分額","") -> 按分額 | F39: =IF(設定シート!$E$3<=7,0,IF(ISBLANK(B5),0,IF($M$38>=ROUNDDOWN(子ども支援金限度額/12,0),IF(B5<=$M$57,ROUNDDOWN(($L$38-$P$27)*P5/$P$17,0)+ROUNDDOWN(子ども支援金均等割/12*$O$57*$M$59,0),IF(AND(B5>$M$57,B5<=$M$58),ROUNDDOWN(($L$38-$P$27)*P5/$P$17,0)+ROUNDDOWN(子ども支援金均等割/12*$M$59,0),IF(B5>$M$58,ROUNDDOWN(($L$38-$P$27)*P5/$P$17,0)+ROUNDDOWN(子ども支援金均等割/12,0)))),0))) -> 0 | G39: =IF(設定シート!$E$3<=7,0,IF(ISBLANK(B7),0,IF($M$38>=ROUNDDOWN(子ども支援金限度額/12,0),IF(B7<=$M$57,ROUNDDOWN(($L$38-$P$27)*P7/$P$17,0)+ROUNDDOWN(子ども支援金均等割/12*$O$57*$M$59,0),IF(AND(B7>$M$57,B7<=$M$58),ROUNDDOWN(($L$38-$P$27)*P7/$P$17,0)+ROUNDDOWN(子ども支援金均等割/12*$M$59,0),IF(B7>$M$58,ROUNDDOWN(($L$38-$P$27)*P7/$P$17,0)+ROUNDDOWN(子ども支援金均等割/12,0)))),0))) -> 0 | H39: =IF(設定シート!$E$3<=7,0,IF(ISBLANK(B9),0,IF($M$38>=ROUNDDOWN(子ども支援金限度額/12,0),IF(B9<=$M$57,ROUNDDOWN(($L$38-$P$27)*P9/$P$17,0)+ROUNDDOWN(子ども支援金均等割/12*$O$57*$M$59,0),IF(AND(B9>$M$57,B9<=$M$58),ROUNDDOWN(($L$38-$P$27)*P9/$P$17,0)+ROUNDDOWN(子ども支援金均等割/12*$M$59,0),IF(B9>$M$58,ROUNDDOWN(($L$38-$P$27)*P9/$P$17,0)+ROUNDDOWN(子ども支援金均等割/12,0)))),0))) -> 0 | I39: =IF(設定シート!$E$3<=7,0,IF(ISBLANK(B11),0,IF($M$38>=ROUNDDOWN(子ども支援金限度額/12,0),IF(B11<=$M$57,ROUNDDOWN(($L$38-$P$27)*P11/$P$17,0)+ROUNDDOWN(子ども支援金均等割/12*$O$57*$M$59,0),IF(AND(B11>$M$57,B11<=$M$58),ROUNDDOWN(($L$38-$P$27)*P11/$P$17,0)+ROUNDDOWN(子ども支援金均等割/12*$M$59,0),IF(B11>$M$58,ROUNDDOWN(($L$38-$P$27)*P11/$P$17,0)+ROUNDDOWN(子ども支援金均等割/12,0)))),0))) -> 0 | J39: =IF(設定シート!$E$3<=7,0,IF(ISBLANK(B13),0,IF($M$38>=ROUNDDOWN(子ども支援金限度額/12,0),IF(B13<=$M$57,ROUNDDOWN(($L$38-$P$27)*P13/$P$17,0)+ROUNDDOWN(子ども支援金均等割/12*$O$57*$M$59,0),IF(AND(B13>$M$57,B13<=$M$58),ROUNDDOWN(($L$38-$P$27)*P13/$P$17,0)+ROUNDDOWN(子ども支援金均等割/12*$M$59,0),IF(B13>$M$58,ROUNDDOWN(($L$38-$P$27)*P13/$P$17,0)+ROUNDDOWN(子ども支援金均等割/12,0)))),0))) -> 0 | K39: =IF(設定シート!E3<=7,0,IF(設定シート!E18=0,0,IF($M$38>=ROUNDDOWN(子ども支援金限度額/12,0),IF(ISBLANK(B15),0,IF(B15<=$M$57,IF(P15=0,ROUNDDOWN(子ども支援金均等割/12*$O$57,0),($L$38-$P$27)*P15/$P$17+ROUNDDOWN(子ども支援金均等割/12*$O$57,0)),IF(P15=0,ROUNDDOWN(子ども支援金均等割/12,0),($L$38-$P$27)*P15/$P$17+ROUNDDOWN(子ども支援金均等割/12,0)))),0))) -> 0 | L39: =SUM(F39:K39) -> 0
C41: 合 計 | F41: 加入者Ａ | G41: 加入者Ｂ | H41: 加入者Ｃ | I41: 加入者Ｄ | J41: 加入者E | K41: 旧被扶養者 | L41: 合 計
F42: =F26+F30+F34+F38 -> 0 | G42: =G26+G30+G34+G38 -> 0 | H42: 0 | I42: 0 | J42: 0 | K42: 0 | L42: =L26+L30+L34+L38 -> 0 | M42: =M26+M30+M34+M38 -> 0
C43: =IF(M42>=L42,"按分額","") -> 按分額 | F43: =ROUNDDOWN(IF(F27=0,F26,F27)+IF(F31=0,F30,F31)+IF(F35=0,F34,F35)+IF(F39=0,F38,F39),0) -> 0 | G43: 0 | H43: 0 | I43: 0 | J43: 0 | K43: 0 | L43: =SUM(F43:K43) -> 0
K47: 割合 | L47: 均等割額 | M47: 限度額 | N47: 月額均等割額 | O47: 月額限度額
J48: 医療給付費分 | K48: =設定シート!$E$7 -> 7.51 | L48: =設定シート!$E$4 -> 47600 | M48: =設定シート!$E$10 -> 670000 | N48: =ROUNDDOWN(医療均等割/12,0) -> 3966 | O48: =ROUNDDOWN(医療限度額/12,0) -> 55833
J49: 支援金分 | K49: =設定シート!$E$8 -> 2.8 | L49: =設定シート!$E$5 -> 17600 | M49: =設定シート!$E$11 -> 260000 | N49: =ROUNDDOWN(支援金均等割/12,0) -> 1466 | O49: =ROUNDDOWN(支援金限度額/12,0) -> 21666
J50: 介護分 | K50: =設定シート!$E$9 -> 2.43 | L50: =設定シート!$E$6 -> 17800 | M50: =設定シート!$E$12 -> 170000 | N50: =ROUNDDOWN(介護均等割/12,0) -> 1483 | O50: =ROUNDDOWN(介護限度額/12,0) -> 14166
J51: 子育て支援分 | K51: =設定シート!E19 -> 0.27 | L51: =設定シート!E18 -> 1873 | M51: =設定シート!E20 -> 30000 | N51: =ROUNDDOWN(子ども支援金均等割/12,0) -> 156 | O51: =ROUNDDOWN(子ども支援金限度額/12,0) -> 2500
K52: =SUM(K48:K51) -> 13.01 | L52: =SUM(L48:L51) -> 84873 | M52: =SUM(M48:M51) -> 1130000 | O52: =SUM(O48:O51) -> 94165
J53: 政減判定 均等割減額加算額
L54: 5割減加算額 | M54: =設定シート!$E$13 -> 310000
L55: 2割減加算額 | M55: =設定シート!$E$14 -> 570000
I57: =設定シート!B15 -> 均等割減額対象年齢 (未就学児) | M57: =設定シート!$E$15 -> 6 | N57: =設定シート!F15 -> 軽減割合 | O57: =1-設定シート!G15 -> 0.5
I58: =TRIM(設定シート!C17&"均等割軽減対象外年齢") -> 子育て支援分均等割軽減対象外年齢 | M58: =設定シート!G17 -> 18
I59: =TRIM(設定シート!C17&" 均等割 割合") -> 子育て支援分 均等割 割合 | M59: =1-設定シート!G18 -> 0
G66: =保険料計算の方法!B37 -> 0
C69: =設定シート!$E$23-1 -> 64 | D69: =IF(ISBLANK(B69),0,B69-C69) -> 0
C70: =設定シート!$E$23-1 -> 64 | D70: =IF(ISBLANK(B70),0,B70-C70) -> 0
C71: =設定シート!$E$23-1 -> 64 | D71: 0
C72: =設定シート!$E$23-1 -> 64 | D72: 0
C73: =設定シート!$E$23-1 -> 64 | D73: 0
A76: =TRIM("★ 入力する収入および所得は、令和"&設定シート!E3-1&"年1月1日から令和"&設定シート!E3-1&"年12月31日までのものとなります。★") -> ★ 入力する収入および所得は、令和7年1月1日から令和7年12月31日までのものとなります。★
E78: 加入者ごとに下のコマンドボタンをクリックして資格を設定してください。
A80: =TRIM(設定シート!E22&"歳以上"&" "&設定シート!E23&"歳未満") -> 40歳以上 65歳未満
A82: =TRIM("39歳以下 または"&" "&設定シート!E23&"歳以上") -> 39歳以下 または 65歳以上

Sheet 加入者別年間保険料
A1: =月額保険料計算シート!A1 -> 令和8年度 | C1: 品川区国民健康保険料 各個人の年間保険料（１２か月加入の場合） | H1: =NOW() -> 2026-02-25T10:01:51.800
I2: 世帯政減割合 | J2: =月額保険料計算シート!L22 -> 0.3
E3: 均等割額（年） | F3: 所得割率（年） | G3: 限度額 | I3: 世帯合計均等割（12か月分）
D4: 医療 | E4: =月額保険料計算シート!医療均等割 -> 47600 | F4: =月額保険料計算シート!医療割合 -> 7.51 | G4: =月額保険料計算シート!医療限度額 -> 670000 | I4: 医療 | J4: =COUNTIF(D10:D19,"<="&月額保険料計算シート!$M$57)*E4*月額保険料計算シート!$O$57*$J$2+COUNTIF(D10:D19,">"&月額保険料計算シート!$M$57)*E4*$J$2+COUNTIF(C20,"◎")*E4*$J$2*0.5+COUNTIF(C20,"×")*E4*$J$2 -> 0
D5: 支援金 | E5: =月額保険料計算シート!支援金均等割 -> 17600 | F5: =月額保険料計算シート!支援金割合 -> 2.8 | G5: =月額保険料計算シート!支援金限度額 -> 260000 | I5: 支援 | J5: =COUNTIF(D10:D19,"<="&月額保険料計算シート!$M$57)*E5*月額保険料計算シート!$O$57*$J$2+COUNTIF(D10:D19,">"&月額保険料計算シート!$M$57)*E5*$J$2+COUNTIF(C20,"◎")*E5*$J$2*0.5+COUNTIF(C20,"×")*E5*$J$2 -> 0
D6: 介護 | E6: =月額保険料計算シート!介護均等割 -> 17800 | F6: =月額保険料計算シート!介護割合 -> 2.43 | G6: =月額保険料計算シート!介護限度額 -> 170000 | I6: 介護 | J6: =COUNTIFS(D10:D19,">="&設定シート!$E$22,D10:D19,"<"&設定シート!$E$23)*E6*J2 -> 0
D7: =IF(設定シート!E3<=7,"",設定シート!C17) -> 子育て支援分 | E7: =IF(設定シート!E3<=7,0,子ども支援金均等割) -> 1873 | F7: =IF(設定シート!E3<=7,0,子ども支援金割合) -> 0.27 | G7: =IF(設定シート!E3<=7,0,子ども支援金限度額) -> 30000 | I7: =D7 -> 子育て支援分 | J7: =SUM(N10:N20) -> 0
H8: =IF(月額保険料計算シート!J22="政減対象外","",TRIM(月額保険料計算シート!$J$22&"適用")) -> 均等割７割減適用 | K8: 各個人の保険料の内の均等割額（再掲）
D9: 年齢 | E9: 賦課基準額 | F9: 医療分 | G9: 後期高齢者 支援金分 | H9: 介護納付金分 | I9: =IF(設定シート!E3<=7,"",TRIM(設定シート!C17)) -> 子育て支援分 | J9: 合計 | K9: 医療均等割 | L9: 支援均等割 | M9: 介護均等割 | N9: =IF(設定シート!E3<=7,"",TRIM(設定シート!C17&"均等割")) -> 子育て支援分均等割
B10: 加入者A | C10: 按分前 | D10: =IF(ISBLANK(月額保険料計算シート!B5),"",IF(月額保険料計算シート!D74=1,月額保険料計算シート!B5+1,月額保険料計算シート!B5)) ->  | E10: =月額保険料計算シート!P5 -> 0 | F10: =IF(ISNUMBER(F11),"",IF(AND(D10<=月額保険料計算シート!$M$57,E10=0),月額保険料計算シート!医療均等割*月額保険料計算シート!$L$22*月額保険料計算シート!$O$57,IF(D10<=月額保険料計算シート!$M$57,(E10*$F$4/100+K10),IF(F11="",IF(D10="",0,IF(E10*$F$4/100+$E$4*$J$2>=$G$4,$G$4,E10*$F$4/100+$E$4*$J$2)),"")))) -> 0 | G10: =IF(ISNUMBER(G11),"",IF(AND(D10<=月額保険料計算シート!$M$57,E10=0),月額保険料計算シート!支援金均等割*月額保険料計算シート!$L$22*月額保険料計算シート!$O$57,IF(D10<=月額保険料計算シート!$M$57,(E10*$F$5/100+L10),IF(G11="",IF(D10="",0,IF(E10*$F$5/100+$E$5*$J$2>=$G$5,$G$5,E10*$F$5/100+$E$5*$J$2)),"")))) -> 0 | H10: =IF(月額保険料計算シート!F34=0,"",IF(AND(D10<=月額保険料計算シート!$M$57,E10=0),"",IF(H11="",IF(OR(D10=0,D10<設定シート!$E$22,D10>=設定シート!$E$23),0,IF(E10*$F$6/100+$E$6*$J$2>=$G$6,$G$6,E10*$F$6/100+$E$6*$J$2)),""))) ->  | I10: =IF(D10="","",IF(ISNUMBER(I11),"",IF(IF(月額保険料計算シート!F38=0,"",IF(D10<=月額保険料計算シート!$M$57,E10*$F$7/100+$E$7*$J$2*月額保険料計算シート!$O$57*月額保険料計算シート!$M$59,IF(AND(D10<=月額保険料計算シート!$M$58,D10>月額保険料計算シート!$M$57),E10*$F$7/100+$E$7*$J$2*月額保険料計算シート!$M$59,IF(D10>月額保険料計算シート!$M$58,E10*$F$7/100+$E$7*$J$2))))>$G$7,$G$7,IF(月額保険料計算シート!F38=0,"",IF(D10<=月額保険料計算シート!$M$57,E10*$F$7/100+E7*$J$2*月額保険料計算シート!$O$57*月額保険料計算シート!$M$59,IF(AND(D10<=月額保険料計算シート!$M$58,D10>月額保険料計算シート!$M$57),E10*$F$7/100+$E$7*$J$2*月額保険料計算シート!$M$59,IF(D10>月額保険料計算シート!$M$58,E10*$F$7/100+$E$7*$J$2))))))) ->  | J10: =SUM(F10:I11) -> 0 | K10: =COUNTIF(D10,"<="&月額保険料計算シート!$M$57)*E4*月額保険料計算シート!$O$57*J2+COUNTIF(D10,">"&月額保険料計算シート!$M$57)*E4*J2 -> 0 | L10: =COUNTIF(D10,"<="&月額保険料計算シート!$M$57)*E5*月額保険料計算シート!$O$57*J2+COUNTIF(D10,">"&月額保険料計算シート!$M$57)*E5*J2 -> 0 | M10: =(COUNTIF(D10,"<"&設定シート!$E$23)*COUNTIF(D10,">="&設定シート!$E$22)*E6*J2) -> 0 | N10: =IF(D10="",0,IF(AND(D10<=設定シート!$G$17,D10<=月額保険料計算シート!$M$57),$E$7*$J$2*月額保険料計算シート!$M$59*月額保険料計算シート!$O$57,IF(AND(D10<=設定シート!$G$17,D10>月額保険料計算シート!$M$57),$E$7*$J$2*月額保険料計算シート!$M$59,IF(D10>設定シート!$G$17,$E$7*$J$2,0)))) -> 0
C11: 按分後 | F11: =IF(月額保険料計算シート!F27=0,"",IF(OR($E$10*$F$4/100+$E$4*$J$2>=$G$4,$E$12*$F$4/100+$E$4*$J$2>=$G$4,$E$14*$F$4/100+$E$4*$J$2>=$G$4,$E$16*$F$4/100+$E$4*$J$2>=$G$4,$E$18*$F$4/100+$E$4*$J$2>=$G$4,(($E$10*$F$4/100+$E$4*$J$2)+($E$12*$F$4/100+$E$4*$J$2)+($E$14*$F$4/100+$E$4*$J$2)+($E$16*$F$4/100+$E$4*$J$2)+($E$18*$F$4/100+$E$4*$J$2)>=$G$4)),K10+ROUNDDOWN((($G$4-$J$4)*E10/$E$21),0),"")) ->  | G11: =IF(月額保険料計算シート!F31=0,"",IF(OR($E$10*$F$5/100+$E$5*$J$2>=$G$5,$E$12*$F$5/100+$E$5*$J$2>=$G$5,$E$14*$F$5/100+$E$5*$J$2>=$G$5,$E$16*$F$5/100+$E$5*$J$2>=$G$5,$E$18*$F$5/100+$E$5*$J$2>=$G$5,(($E$10*$F$5/100+$E$5*$J$2)+($E$12*$F$5/100+$E$5*$J$2)+($E$14*$F$5/100+$E$5*$J$2)+($E$16*$F$5/100+$E$5*$J$2)+($E$18*$F$5/100+$E$5*$J$2)>=$G$5)),L10+ROUNDDOWN((($G$5-$J$5)*E10/$E$21),0),"")) ->  | H11: =IF(月額保険料計算シート!F35=0,"",IF(OR(D10=0,D10<設定シート!$E$22,D10>=設定シート!$E$23),0,IF(OR($E$10*$F$6/100+$E$6*$J$2>=$G$6,$E$12*$F$6/100+$E$6*$J$2>=$G$6,$E$14*$F$6/100+$E$6*$J$2>=$G$6,$E$16*$F$6/100+$E$6*$J$2>=$G$6,$E$18*$F$6/100+$E$6*$J$2>=$G$6,(($E$10*$F$6/100+$E$6*$J$2)+($E$12*$F$6/100+$E$6*$J$2)+($E$14*$F$6/100+$E$6*$J$2)+($E$16*$F$6/100+$E$6*$J$2)+($E$18*$F$6/100+$E$6*$J$2)>=$G$6)),M10+ROUNDDOWN((($G$6-$J$6)*E10/$E$22),0),""))) ->  | I11: =IF((IF(月額保険料計算シート!F38=0,0,IF(D10<=月額保険料計算シート!$M$57,E10*$F$7/100+$E$7*$J$2*月額保険料計算シート!$O$57*月額保険料計算シート!$M$59,IF(AND(D10<=月額保険料計算シート!$M$58,D10>月額保険料計算シート!$M$57),E10*$F$7/100+$E$7*$J$2*月額保険料計算シート!$M$59,IF(D10>月額保険料計算シート!$M$58,E10*$F$7/100+$E$7*$J$2)))))+(IF(月額保険料計算シート!G38=0,0,IF(D12<=月額保険料計算シート!$M$57,E12*$F$7/100+$E$7*$J$2*月額保険料計算シート!$O$57*月額保険料計算シート!$M$59,IF(AND(D12<=月額保険料計算シート!$M$58,D12>月額保険料計算シート!$M$57),E12*$F$7/100+$E$7*$J$2*月額保険料計算シート!$M$59,IF(D12>月額保険料計算シート!$M$58,E12*$F$7/100+$E$7*$J$2)))))+(IF(月額保険料計算シート!H38=0,0,IF(D14<=月額保険料計算シート!$M$57,E14*$F$7/100+$E$7*$J$2*月額保険料計算シート!$O$57*月額保険料計算シート!$M$59,IF(AND(D14<=月額保険料計算シート!$M$58,D14>月額保険料計算シート!$M$57),E14*$F$7/100+$E$7*$J$2*月額保険料計算シート!$M$59,IF(D14>月額保険料計算シート!$M$58,E14*$F$7/100+$E$7*$J$2)))))+(IF(月額保険料計算シート!I38=0,0,IF(D16<=月額保険料計算シート!$M$57,E16*$F$7/100+$E$7*$J$2*月額保険料計算シート!$O$57*月額保険料計算シート!$M$59,IF(AND(D16<=月額保険料計算シート!$M$58,D16>月額保険料計算シート!$M$57),E16*$F$7/100+$E$7*$J$2*月額保険料計算シート!$M$59,IF(D16>月額保険料計算シート!$M$58,E16*$F$7/100+$E$7*$J$2)))))+(IF(月額保険料計算シート!J38=0,0,IF(D18<=月額保険料計算シート!$M$57,E18*$F$7/100+$E$7*$J$2*月額保険料計算シート!$O$57*月額保険料計算シート!$M$59,IF(AND(D18<=月額保険料計算シート!$M$58,D18>月額保険料計算シート!$M$57),E18*$F$7/100+$E$7*$J$2*月額保険料計算シート!$M$59,IF(D18>月額保険料計算シート!$M$58,E18*$F$7/100+$E$7*$J$2)))))>$G$7,ROUNDDOWN(($G$7-$J$7)*(E10/$E$21),0)+N10,"") -> 
B12: 加入者B | C12: 按分前 | D12: =IF(ISBLANK(月額保険料計算シート!B7),"",IF(月額保険料計算シート!D75=1,月額保険料計算シート!B7+1,月額保険料計算シート!B7)) ->  | E12: =月額保険料計算シート!P7 -> 0 | F12: =IF(ISNUMBER(F13),"",IF(AND(D12<=月額保険料計算シート!$M$57,E12=0),月額保険料計算シート!医療均等割*月額保険料計算シート!$L$22*月額保険料計算シート!$O$57,IF(D12<=月額保険料計算シート!$M$57,(E12*$F$4/100+K12),IF(F13="",IF(D12="",0,IF(E12*$F$4/100+$E$4*$J$2>=$G$4,$G$4,E12*$F$4/100+$E$4*$J$2)),"")))) -> 0 | G12: =IF(ISNUMBER(G13),"",IF(AND(D12<=月額保険料計算シート!$M$57,E12=0),月額保険料計算シート!支援金均等割*月額保険料計算シート!$L$22*月額保険料計算シート!$O$57,IF(D12<=月額保険料計算シート!$M$57,(E12*$F$5/100+L12),IF(G13="",IF(D12="",0,IF(E12*$F$5/100+$E$5*$J$2>=$G$5,$G$5,E12*$F$5/100+$E$5*$J$2)),"")))) -> 0 | H12: =IF(月額保険料計算シート!G34=0,"",IF(AND(D12<=月額保険料計算シート!$M$57,E12=0),"",IF(H13="",IF(OR(D12=0,D12<設定シート!$E$22,D12>=設定シート!$E$23),0,IF(E12*$F$6/100+$E$6*$J$2>=$G$6,$G$6,E12*$F$6/100+$E$6*$J$2)),""))) ->  | I12: =IF(D12="","",IF(ISNUMBER(I13),"",IF(IF(月額保険料計算シート!G38=0,"",IF(D12<=月額保険料計算シート!$M$57,E12*$F$7/100+$E$7*$J$2*月額保険料計算シート!$O$57*月額保険料計算シート!$M$59,IF(AND(D12<=月額保険料計算シート!$M$58,D12>月額保険料計算シート!$M$57),E12*$F$7/100+$E$7*$J$2*月額保険料計算シート!$M$59,IF(D12>月額保険料計算シート!$M$58,E12*$F$7/100+$E$7*$J$2))))>$G$7,$G$7,IF(月額保険料計算シート!G38=0,"",IF(D12<=月額保険料計算シート!$M$57,E12*$F$7/100+$E$7*$J$2*月額保険料計算シート!$O$57*月額保険料計算シート!$M$59,IF(AND(D12<=月額保険料計算シート!$M$58,D12>月額保険料計算シート!$M$57),E12*$F$7/100+$E$7*$J$2*月額保険料計算シート!$M$59,IF(D12>月額保険料計算シート!$M$58,E12*$F$7/100+$E$7*$J$2))))))) ->  | J12: =SUM(F12:I13) -> 0 | K12: =COUNTIF(D12,"<="&月額保険料計算シート!$M$57)*E4*月額保険料計算シート!$O$57*J2+COUNTIF(D12,">"&月額保険料計算シート!$M$57)*E4*J2 -> 0 | L12: =COUNTIF(D12,"<="&月額保険料計算シート!$M$57)*E5*月額保険料計算シート!$O$57*J2+COUNTIF(D12,">"&月額保険料計算シート!$M$57)*E5*J2 -> 0 | M12: =(COUNTIF(D12,"<"&設定シート!$E$23)*COUNTIF(D12,">="&設定シート!$E$22)*E6*J2) -> 0 | N12: =IF(D12="",0,IF(AND(D12<=設定シート!$G$17,D12<=月額保険料計算シート!$M$57),$E$7*$J$2*月額保険料計算シート!$M$59*月額保険料計算シート!$O$57,IF(AND(D12<=設定シート!$G$17,D12>月額保険料計算シート!$M$57),$E$7*$J$2*月額保険料計算シート!$M$59,IF(D12>設定シート!$G$17,$E$7*$J$2,0)))) -> 0
C13: 按分後 | F13: =IF(月額保険料計算シート!G27=0,"",IF(OR($E$10*$F$4/100+$E$4*$J$2>=$G$4,$E$12*$F$4/100+$E$4*$J$2>=$G$4,$E$14*$F$4/100+$E$4*$J$2>=$G$4,$E$16*$F$4/100+$E$4*$J$2>=$G$4,$E$18*$F$4/100+$E$4*$J$2>=$G$4,(($E$10*$F$4/100+$E$4*$J$2)+($E$12*$F$4/100+$E$4*$J$2)+($E$14*$F$4/100+$E$4*$J$2)+($E$16*$F$4/100+$E$4*$J$2)+($E$18*$F$4/100+$E$4*$J$2)>=$G$4)),K12+ROUNDDOWN((($G$4-$J$4)*E12/$E$21),0),"")) ->  | G13: =IF(月額保険料計算シート!G31=0,"",IF(OR($E$10*$F$5/100+$E$5*$J$2>=$G$5,$E$12*$F$5/100+$E$5*$J$2>=$G$5,$E$14*$F$5/100+$E$5*$J$2>=$G$5,$E$16*$F$5/100+$E$5*$J$2>=$G$5,$E$18*$F$5/100+$E$5*$J$2>=$G$5,(($E$10*$F$5/100+$E$5*$J$2)+($E$12*$F$5/100+$E$5*$J$2)+($E$14*$F$5/100+$E$5*$J$2)+($E$16*$F$5/100+$E$5*$J$2)+($E$18*$F$5/100+$E$5*$J$2)>=$G$5)),L12+ROUNDDOWN((($G$5-$J$5)*E12/$E$21),0),"")) ->  | H13: =IF(月額保険料計算シート!G35=0,"",IF(OR(D12=0,D12<設定シート!$E$22,D12>=設定シート!$E$23),0,IF(OR($E$10*$F$6/100+$E$6*$J$2>=$G$6,$E$12*$F$6/100+$E$6*$J$2>=$G$6,$E$14*$F$6/100+$E$6*$J$2>=$G$6,$E$16*$F$6/100+$E$6*$J$2>=$G$6,$E$18*$F$6/100+$E$6*$J$2>=$G$6,(($E$10*$F$6/100+$E$6*$J$2)+($E$12*$F$6/100+$E$6*$J$2)+($E$14*$F$6/100+$E$6*$J$2)+($E$16*$F$6/100+$E$6*$J$2)+($E$18*$F$6/100+$E$6*$J$2)>=$G$6)),M12+ROUNDDOWN((($G$6-$J$6)*E12/$E$22),0),""))) ->  | I13: =IF((IF(月額保険料計算シート!F38=0,0,IF(D10<=月額保険料計算シート!$M$57,E10*$F$7/100+$E$7*$J$2*月額保険料計算シート!$O$57*月額保険料計算シート!$M$59,IF(AND(D10<=月額保険料計算シート!$M$58,D10>月額保険料計算シート!$M$57),E10*$F$7/100+$E$7*$J$2*月額保険料計算シート!$M$59,IF(D10>月額保険料計算シート!$M$58,E10*$F$7/100+$E$7*$J$2)))))+(IF(月額保険料計算シート!G38=0,0,IF(D12<=月額保険料計算シート!$M$57,E12*$F$7/100+$E$7*$J$2*月額保険料計算シート!$O$57*月額保険料計算シート!$M$59,IF(AND(D12<=月額保険料計算シート!$M$58,D12>月額保険料計算シート!$M$57),E12*$F$7/100+$E$7*$J$2*月額保険料計算シート!$M$59,IF(D12>月額保険料計算シート!$M$58,E12*$F$7/100+$E$7*$J$2)))))+(IF(月額保険料計算シート!H38=0,0,IF(D14<=月額保険料計算シート!$M$57,E14*$F$7/100+$E$7*$J$2*月額保険料計算シート!$O$57*月額保険料計算シート!$M$59,IF(AND(D14<=月額保険料計算シート!$M$58,D14>月額保険料計算シート!$M$57),E14*$F$7/100+$E$7*$J$2*月額保険料計算シート!$M$59,IF(D14>月額保険料計算シート!$M$58,E14*$F$7/100+$E$7*$J$2)))))+(IF(月額保険料計算シート!I38=0,0,IF(D16<=月額保険料計算シート!$M$57,E16*$F$7/100+$E$7*$J$2*月額保険料計算シート!$O$57*月額保険料計算シート!$M$59,IF(AND(D16<=月額保険料計算シート!$M$58,D16>月額保険料計算シート!$M$57),E16*$F$7/100+$E$7*$J$2*月額保険料計算シート!$M$59,IF(D16>月額保険料計算シート!$M$58,E16*$F$7/100+$E$7*$J$2)))))+(IF(月額保険料計算シート!J38=0,0,IF(D18<=月額保険料計算シート!$M$57,E18*$F$7/100+$E$7*$J$2*月額保険料計算シート!$O$57*月額保険料計算シート!$M$59,IF(AND(D18<=月額保険料計算シート!$M$58,D18>月額保険料計算シート!$M$57),E18*$F$7/100+$E$7*$J$2*月額保険料計算シート!$M$59,IF(D18>月額保険料計算シート!$M$58,E18*$F$7/100+$E$7*$J$2)))))>$G$7,ROUNDDOWN(($G$7-$J$7)*(E12/$E$21),0)+N12,"") -> 
B14: 加入者C | C14: 按分前 | D14: =IF(ISBLANK(月額保険料計算シート!B9),"",IF(月額保険料計算シート!D76=1,月額保険料計算シート!B9+1,月額保険料計算シート!B9)) ->  | E14: =月額保険料計算シート!P9 -> 0 | F14: =IF(ISNUMBER(F15),"",IF(AND(D14<=月額保険料計算シート!$M$57,E14=0),月額保険料計算シート!医療均等割*月額保険料計算シート!$L$22*月額保険料計算シート!$O$57,IF(D14<=月額保険料計算シート!$M$57,(E14*$F$4/100+K14),IF(F15="",IF(D14="",0,IF(E14*$F$4/100+$E$4*$J$2>=$G$4,$G$4,E14*$F$4/100+$E$4*$J$2)),"")))) -> 0 | G14: =IF(ISNUMBER(G15),"",IF(AND(D14<=月額保険料計算シート!$M$57,E14=0),月額保険料計算シート!支援金均等割*月額保険料計算シート!$L$22*月額保険料計算シート!$O$57,IF(D14<=月額保険料計算シート!$M$57,(E14*$F$5/100+L14),IF(G15="",IF(D14="",0,IF(E14*$F$5/100+$E$5*$J$2>=$G$5,$G$5,E14*$F$5/100+$E$5*$J$2)),"")))) -> 0 | H14: =IF(月額保険料計算シート!H34=0,"",IF(AND(D14<=月額保険料計算シート!$M$57,E14=0),"",IF(H15="",IF(OR(D14=0,D14<設定シート!$E$22,D14>=設定シート!$E$23),0,IF(E14*$F$6/100+$E$6*$J$2>=$G$6,$G$6,E14*$F$6/100+$E$6*$J$2)),""))) ->  | I14: =IF(D14="","",IF(ISNUMBER(I15),"",IF(IF(月額保険料計算シート!H38=0,"",IF(D14<=月額保険料計算シート!$M$57,E14*$F$7/100+$E$7*$J$2*月額保険料計算シート!$O$57*月額保険料計算シート!$M$59,IF(AND(D14<=月額保険料計算シート!$M$58,D14>月額保険料計算シート!$M$57),E14*$F$7/100+$E$7*$J$2*月額保険料計算シート!$M$59,IF(D14>月額保険料計算シート!$M$58,E14*$F$7/100+$E$7*$J$2))))>$G$7,$G$7,IF(月額保険料計算シート!H38=0,"",IF(D14<=月額保険料計算シート!$M$57,E14*$F$7/100+$E$7*$J$2*月額保険料計算シート!$O$57*月額保険料計算シート!$M$59,IF(AND(D14<=月額保険料計算シート!$M$58,D14>月額保険料計算シート!$M$57),E14*$F$7/100+$E$7*$J$2*月額保険料計算シート!$M$59,IF(D14>月額保険料計算シート!$M$58,E14*$F$7/100+$E$7*$J$2))))))) ->  | J14: =SUM(F14:I15) -> 0 | K14: =COUNTIF(D14,"<="&月額保険料計算シート!$M$57)*E4*月額保険料計算シート!$O$57*J2+COUNTIF(D14,">"&月額保険料計算シート!$M$57)*E4*J2 -> 0 | L14: =COUNTIF(D14,"<="&月額保険料計算シート!$M$57)*E5*月額保険料計算シート!$O$57*J2+COUNTIF(D14,">"&月額保険料計算シート!$M$57)*E5*J2 -> 0 | M14: =(COUNTIF(D14,"<"&設定シート!$E$23)*COUNTIF(D14,">="&設定シート!$E$22)*E6*J2) -> 0 | N14: =IF(D14="",0,IF(AND(D14<=設定シート!$G$17,D14<=月額保険料計算シート!$M$57),$E$7*$J$2*月額保険料計算シート!$M$59*月額保険料計算シート!$O$57,IF(AND(D14<=設定シート!$G$17,D14>月額保険料計算シート!$M$57),$E$7*$J$2*月額保険料計算シート!$M$59,IF(D14>設定シート!$G$17,$E$7*$J$2,0)))) -> 0
C15: 按分後 | F15: =IF(月額保険料計算シート!H27=0,"",IF(OR($E$10*$F$4/100+$E$4*$J$2>=$G$4,$E$12*$F$4/100+$E$4*$J$2>=$G$4,$E$14*$F$4/100+$E$4*$J$2>=$G$4,$E$16*$F$4/100+$E$4*$J$2>=$G$4,$E$18*$F$4/100+$E$4*$J$2>=$G$4,(($E$10*$F$4/100+$E$4*$J$2)+($E$12*$F$4/100+$E$4*$J$2)+($E$14*$F$4/100+$E$4*$J$2)+($E$16*$F$4/100+$E$4*$J$2)+($E$18*$F$4/100+$E$4*$J$2)>=$G$4)),K14+ROUNDDOWN((($G$4-$J$4)*E14/$E$21),0),"")) ->  | G15: =IF(月額保険料計算シート!H31=0,"",IF(OR($E$10*$F$5/100+$E$5*$J$2>=$G$5,$E$12*$F$5/100+$E$5*$J$2>=$G$5,$E$14*$F$5/100+$E$5*$J$2>=$G$5,$E$16*$F$5/100+$E$5*$J$2>=$G$5,$E$18*$F$5/100+$E$5*$J$2>=$G$5,(($E$10*$F$5/100+$E$5*$J$2)+($E$12*$F$5/100+$E$5*$J$2)+($E$14*$F$5/100+$E$5*$J$2)+($E$16*$F$5/100+$E$5*$J$2)+($E$18*$F$5/100+$E$5*$J$2)>=$G$5)),L14+ROUNDDOWN((($G$5-$J$5)*E14/$E$21),0),"")) ->  | H15: =IF(月額保険料計算シート!H35=0,"",IF(OR(D14=0,D14<設定シート!$E$22,D14>=設定シート!$E$23),0,IF(OR($E$10*$F$6/100+$E$6*$J$2>=$G$6,$E$12*$F$6/100+$E$6*$J$2>=$G$6,$E$14*$F$6/100+$E$6*$J$2>=$G$6,$E$16*$F$6/100+$E$6*$J$2>=$G$6,$E$18*$F$6/100+$E$6*$J$2>=$G$6,(($E$10*$F$6/100+$E$6*$J$2)+($E$12*$F$6/100+$E$6*$J$2)+($E$14*$F$6/100+$E$6*$J$2)+($E$16*$F$6/100+$E$6*$J$2)+($E$18*$F$6/100+$E$6*$J$2)>=$G$6)),M14+ROUNDDOWN((($G$6-$J$6)*E14/$E$22),0),""))) ->  | I15: =IF((IF(月額保険料計算シート!F38=0,0,IF(D10<=月額保険料計算シート!$M$57,E10*$F$7/100+$E$7*$J$2*月額保険料計算シート!$O$57*月額保険料計算シート!$M$59,IF(AND(D10<=月額保険料計算シート!$M$58,D10>月額保険料計算シート!$M$57),E10*$F$7/100+$E$7*$J$2*月額保険料計算シート!$M$59,IF(D10>月額保険料計算シート!$M$58,E10*$F$7/100+$E$7*$J$2)))))+(IF(月額保険料計算シート!G38=0,0,IF(D12<=月額保険料計算シート!$M$57,E12*$F$7/100+$E$7*$J$2*月額保険料計算シート!$O$57*月額保険料計算シート!$M$59,IF(AND(D12<=月額保険料計算シート!$M$58,D12>月額保険料計算シート!$M$57),E12*$F$7/100+$E$7*$J$2*月額保険料計算シート!$M$59,IF(D12>月額保険料計算シート!$M$58,E12*$F$7/100+$E$7*$J$2)))))+(IF(月額保険料計算シート!H38=0,0,IF(D14<=月額保険料計算シート!$M$57,E14*$F$7/100+$E$7*$J$2*月額保険料計算シート!$O$57*月額保険料計算シート!$M$59,IF(AND(D14<=月額保険料計算シート!$M$58,D14>月額保険料計算シート!$M$57),E14*$F$7/100+$E$7*$J$2*月額保険料計算シート!$M$59,IF(D14>月額保険料計算シート!$M$58,E14*$F$7/100+$E$7*$J$2)))))+(IF(月額保険料計算シート!I38=0,0,IF(D16<=月額保険料計算シート!$M$57,E16*$F$7/100+$E$7*$J$2*月額保険料計算シート!$O$57*月額保険料計算シート!$M$59,IF(AND(D16<=月額保険料計算シート!$M$58,D16>月額保険料計算シート!$M$57),E16*$F$7/100+$E$7*$J$2*月額保険料計算シート!$M$59,IF(D16>月額保険料計算シート!$M$58,E16*$F$7/100+$E$7*$J$2)))))+(IF(月額保険料計算シート!J38=0,0,IF(D18<=月額保険料計算シート!$M$57,E18*$F$7/100+$E$7*$J$2*月額保険料計算シート!$O$57*月額保険料計算シート!$M$59,IF(AND(D18<=月額保険料計算シート!$M$58,D18>月額保険料計算シート!$M$57),E18*$F$7/100+$E$7*$J$2*月額保険料計算シート!$M$59,IF(D18>月額保険料計算シート!$M$58,E18*$F$7/100+$E$7*$J$2)))))>$G$7,ROUNDDOWN(($G$7-$J$7)*(E14/$E$21),0)+N14,"") -> 
B16: 加入者D | C16: 按分前 | D16: =IF(ISBLANK(月額保険料計算シート!B11),"",IF(月額保険料計算シート!D77=1,月額保険料計算シート!B11+1,月額保険料計算シート!B11)) ->  | E16: =月額保険料計算シート!P11 -> 0 | F16: =IF(ISNUMBER(F17),"",IF(AND(D16<=月額保険料計算シート!$M$57,E16=0),月額保険料計算シート!医療均等割*月額保険料計算シート!$L$22*月額保険料計算シート!$O$57,IF(D16<=月額保険料計算シート!$M$57,(E16*$F$4/100+K16),IF(F17="",IF(D16="",0,IF(E16*$F$4/100+$E$4*$J$2>=$G$4,$G$4,E16*$F$4/100+$E$4*$J$2)),"")))) -> 0 | G16: =IF(ISNUMBER(G17),"",IF(AND(D16<=月額保険料計算シート!$M$57,E16=0),月額保険料計算シート!支援金均等割*月額保険料計算シート!$L$22*月額保険料計算シート!$O$57,IF(D16<=月額保険料計算シート!$M$57,(E16*$F$5/100+L16),IF(G17="",IF(D16="",0,IF(E16*$F$5/100+$E$5*$J$2>=$G$5,$G$5,E16*$F$5/100+$E$5*$J$2)),"")))) -> 0 | H16: =IF(月額保険料計算シート!I34=0,"",IF(AND(D16<=月額保険料計算シート!$M$57,E16=0),"",IF(H17="",IF(OR(D16=0,D16<設定シート!$E$22,D16>=設定シート!$E$23),0,IF(E16*$F$6/100+$E$6*$J$2>=$G$6,$G$6,E16*$F$6/100+$E$6*$J$2)),""))) ->  | I16: =IF(D16="","",IF(ISNUMBER(I17),"",IF(IF(月額保険料計算シート!I38=0,"",IF(D16<=月額保険料計算シート!$M$57,E16*$F$7/100+$E$7*$J$2*月額保険料計算シート!$O$57*月額保険料計算シート!$M$59,IF(AND(D16<=月額保険料計算シート!$M$58,D16>月額保険料計算シート!$M$57),E16*$F$7/100+$E$7*$J$2*月額保険料計算シート!$M$59,IF(D16>月額保険料計算シート!$M$58,E16*$F$7/100+$E$7*$J$2))))>$G$7,$G$7,IF(月額保険料計算シート!I38=0,"",IF(D16<=月額保険料計算シート!$M$57,E16*$F$7/100+$E$7*$J$2*月額保険料計算シート!$O$57*月額保険料計算シート!$M$59,IF(AND(D16<=月額保険料計算シート!$M$58,D16>月額保険料計算シート!$M$57),E16*$F$7/100+$E$7*$J$2*月額保険料計算シート!$M$59,IF(D16>月額保険料計算シート!$M$58,E16*$F$7/100+$E$7*$J$2))))))) ->  | J16: =SUM(F16:I17) -> 0 | K16: =COUNTIF(D16,"<="&月額保険料計算シート!$M$57)*E4*月額保険料計算シート!$O$57*J2+COUNTIF(D16,">"&月額保険料計算シート!$M$57)*E4*J2 -> 0 | L16: =COUNTIF(D16,"<="&月額保険料計算シート!$M$57)*E5*月額保険料計算シート!$O$57*J2+COUNTIF(D16,">"&月額保険料計算シート!$M$57)*E5*J2 -> 0 | M16: =(COUNTIF(D16,"<"&設定シート!$E$23)*COUNTIF(D16,">="&設定シート!$E$22)*E6*J2) -> 0 | N16: =IF(D16="",0,IF(AND(D16<=設定シート!$G$17,D16<=月額保険料計算シート!$M$57),$E$7*$J$2*月額保険料計算シート!$M$59*月額保険料計算シート!$O$57,IF(AND(D16<=設定シート!$G$17,D16>月額保険料計算シート!$M$57),$E$7*$J$2*月額保険料計算シート!$M$59,IF(D16>設定シート!$G$17,$E$7*$J$2,0)))) -> 0
C17: 按分後 | F17: =IF(月額保険料計算シート!I27=0,"",IF(OR($E$10*$F$4/100+$E$4*$J$2>=$G$4,$E$12*$F$4/100+$E$4*$J$2>=$G$4,$E$14*$F$4/100+$E$4*$J$2>=$G$4,$E$16*$F$4/100+$E$4*$J$2>=$G$4,$E$18*$F$4/100+$E$4*$J$2>=$G$4,(($E$10*$F$4/100+$E$4*$J$2)+($E$12*$F$4/100+$E$4*$J$2)+($E$14*$F$4/100+$E$4*$J$2)+($E$16*$F$4/100+$E$4*$J$2)+($E$18*$F$4/100+$E$4*$J$2)>=$G$4)),K16+ROUNDDOWN((($G$4-$J$4)*E16/$E$21),0),"")) ->  | G17: =IF(月額保険料計算シート!I31=0,"",IF(OR($E$10*$F$5/100+$E$5*$J$2>=$G$5,$E$12*$F$5/100+$E$5*$J$2>=$G$5,$E$14*$F$5/100+$E$5*$J$2>=$G$5,$E$16*$F$5/100+$E$5*$J$2>=$G$5,$E$18*$F$5/100+$E$5*$J$2>=$G$5,(($E$10*$F$5/100+$E$5*$J$2)+($E$12*$F$5/100+$E$5*$J$2)+($E$14*$F$5/100+$E$5*$J$2)+($E$16*$F$5/100+$E$5*$J$2)+($E$18*$F$5/100+$E$5*$J$2)>=$G$5)),L16+ROUNDDOWN((($G$5-$J$5)*E16/$E$21),0),"")) ->  | H17: =IF(月額保険料計算シート!I35=0,"",IF(OR(D16=0,D16<設定シート!$E$22,D16>=設定シート!$E$23),0,IF(OR($E$10*$F$6/100+$E$6*$J$2>=$G$6,$E$12*$F$6/100+$E$6*$J$2>=$G$6,$E$14*$F$6/100+$E$6*$J$2>=$G$6,$E$16*$F$6/100+$E$6*$J$2>=$G$6,$E$18*$F$6/100+$E$6*$J$2>=$G$6,(($E$10*$F$6/100+$E$6*$J$2)+($E$12*$F$6/100+$E$6*$J$2)+($E$14*$F$6/100+$E$6*$J$2)+($E$16*$F$6/100+$E$6*$J$2)+($E$18*$F$6/100+$E$6*$J$2)>=$G$6)),M16+ROUNDDOWN((($G$6-$J$6)*E16/$E$22),0),""))) ->  | I17: =IF((IF(月額保険料計算シート!F38=0,0,IF(D10<=月額保険料計算シート!$M$57,E10*$F$7/100+$E$7*$J$2*月額保険料計算シート!$O$57*月額保険料計算シート!$M$59,IF(AND(D10<=月額保険料計算シート!$M$58,D10>月額保険料計算シート!$M$57),E10*$F$7/100+$E$7*$J$2*月額保険料計算シート!$M$59,IF(D10>月額保険料計算シート!$M$58,E10*$F$7/100+$E$7*$J$2)))))+(IF(月額保険料計算シート!G38=0,0,IF(D12<=月額保険料計算シート!$M$57,E12*$F$7/100+$E$7*$J$2*月額保険料計算シート!$O$57*月額保険料計算シート!$M$59,IF(AND(D12<=月額保険料計算シート!$M$58,D12>月額保険料計算シート!$M$57),E12*$F$7/100+$E$7*$J$2*月額保険料計算シート!$M$59,IF(D12>月額保険料計算シート!$M$58,E12*$F$7/100+$E$7*$J$2)))))+(IF(月額保険料計算シート!H38=0,0,IF(D14<=月額保険料計算シート!$M$57,E14*$F$7/100+$E$7*$J$2*月額保険料計算シート!$O$57*月額保険料計算シート!$M$59,IF(AND(D14<=月額保険料計算シート!$M$58,D14>月額保険料計算シート!$M$57),E14*$F$7/100+$E$7*$J$2*月額保険料計算シート!$M$59,IF(D14>月額保険料計算シート!$M$58,E14*$F$7/100+$E$7*$J$2)))))+(IF(月額保険料計算シート!I38=0,0,IF(D16<=月額保険料計算シート!$M$57,E16*$F$7/100+$E$7*$J$2*月額保険料計算シート!$O$57*月額保険料計算シート!$M$59,IF(AND(D16<=月額保険料計算シート!$M$58,D16>月額保険料計算シート!$M$57),E16*$F$7/100+$E$7*$J$2*月額保険料計算シート!$M$59,IF(D16>月額保険料計算シート!$M$58,E16*$F$7/100+$E$7*$J$2)))))+(IF(月額保険料計算シート!J38=0,0,IF(D18<=月額保険料計算シート!$M$57,E18*$F$7/100+$E$7*$J$2*月額保険料計算シート!$O$57*月額保険料計算シート!$M$59,IF(AND(D18<=月額保険料計算シート!$M$58,D18>月額保険料計算シート!$M$57),E18*$F$7/100+$E$7*$J$2*月額保険料計算シート!$M$59,IF(D18>月額保険料計算シート!$M$58,E18*$F$7/100+$E$7*$J$2)))))>$G$7,ROUNDDOWN(($G$7-$J$7)*(E16/$E$21),0)+N16,"") -> 
B18: 加入者E | C18: 按分前 | D18: =IF(ISBLANK(月額保険料計算シート!B13),"",IF(月額保険料計算シート!D78=1,月額保険料計算シート!B13+1,月額保険料計算シート!B13)) ->  | E18: =月額保険料計算シート!P13 -> 0 | F18: =IF(ISNUMBER(F19),"",IF(AND(D18<=月額保険料計算シート!$M$57,E18=0),月額保険料計算シート!医療均等割*月額保険料計算シート!$L$22*月額保険料計算シート!$O$57,IF(D18<=月額保険料計算シート!$M$57,(E18*$F$4/100+K18),IF(F19="",IF(D18="",0,IF(E18*$F$4/100+$E$4*$J$2>=$G$4,$G$4,E18*$F$4/100+$E$4*$J$2)),"")))) -> 0 | G18: =IF(ISNUMBER(G19),"",IF(AND(D18<=月額保険料計算シート!$M$57,E18=0),月額保険料計算シート!支援金均等割*月額保険料計算シート!$L$22*月額保険料計算シート!$O$57,IF(D18<=月額保険料計算シート!$M$57,(E18*$F$5/100+L18),IF(G19="",IF(D18="",0,IF(E18*$F$5/100+$E$5*$J$2>=$G$5,$G$5,E18*$F$5/100+$E$5*$J$2)),"")))) -> 0 | H18: =IF(月額保険料計算シート!J34=0,"",IF(AND(D18<=月額保険料計算シート!$M$57,E18=0),"",IF(H19="",IF(OR(D18=0,D18<設定シート!$E$22,D18>=設定シート!$E$23),0,IF(E18*$F$6/100+$E$6*$J$2>=$G$6,$G$6,E18*$F$6/100+$E$6*$J$2)),""))) ->  | I18: =IF(D18="","",IF(ISNUMBER(I19),"",IF(IF(月額保険料計算シート!J38=0,"",IF(D18<=月額保険料計算シート!$M$57,E18*$F$7/100+$E$7*$J$2*月額保険料計算シート!$O$57*月額保険料計算シート!$M$59,IF(AND(D18<=月額保険料計算シート!$M$58,D18>月額保険料計算シート!$M$57),E18*$F$7/100+$E$7*$J$2*月額保険料計算シート!$M$59,IF(D18>月額保険料計算シート!$M$58,E18*$F$7/100+$E$7*$J$2))))>$G$7,$G$7,IF(月額保険料計算シート!J38=0,"",IF(D18<=月額保険料計算シート!$M$57,E18*$F$7/100+$E$7*$J$2*月額保険料計算シート!$O$57*月額保険料計算シート!$M$59,IF(AND(D18<=月額保険料計算シート!$M$58,D18>月額保険料計算シート!$M$57),E18*$F$7/100+$E$7*$J$2*月額保険料計算シート!$M$59,IF(D18>月額保険料計算シート!$M$58,E18*$F$7/100+$E$7*$J$2))))))) ->  | J18: =SUM(F18:I19) -> 0 | K18: =COUNTIF(D18,"<="&月額保険料計算シート!$M$57)*E4*月額保険料計算シート!$O$57*J2+COUNTIF(D18,">"&月額保険料計算シート!$M$57)*E4*J2 -> 0 | L18: =COUNTIF(D18,"<="&月額保険料計算シート!$M$57)*E5*月額保険料計算シート!$O$57*J2+COUNTIF(D18,">"&月額保険料計算シート!$M$57)*E5*J2 -> 0 | M18: =(COUNTIF(D18,"<"&設定シート!$E$23)*COUNTIF(D18,">="&設定シート!$E$22)*E6*J2) -> 0 | N18: =IF(D18="",0,IF(AND(D18<=設定シート!$G$17,D18<=月額保険料計算シート!$M$57),$E$7*$J$2*月額保険料計算シート!$M$59*月額保険料計算シート!$O$57,IF(AND(D18<=設定シート!$G$17,D18>月額保険料計算シート!$M$57),$E$7*$J$2*月額保険料計算シート!$M$59,IF(D18>設定シート!$G$17,$E$7*$J$2,0)))) -> 0
C19: 按分後 | F19: =IF(月額保険料計算シート!J27=0,"",IF(OR($E$10*$F$4/100+$E$4*$J$2>=$G$4,$E$12*$F$4/100+$E$4*$J$2>=$G$4,$E$14*$F$4/100+$E$4*$J$2>=$G$4,$E$16*$F$4/100+$E$4*$J$2>=$G$4,$E$18*$F$4/100+$E$4*$J$2>=$G$4,(($E$10*$F$4/100+$E$4*$J$2)+($E$12*$F$4/100+$E$4*$J$2)+($E$14*$F$4/100+$E$4*$J$2)+($E$16*$F$4/100+$E$4*$J$2)+($E$18*$F$4/100+$E$4*$J$2)>=$G$4)),K18+ROUNDDOWN((($G$4-$J$4)*E18/$E$21),0),"")) ->  | G19: =IF(月額保険料計算シート!J31=0,"",IF(OR($E$10*$F$5/100+$E$5*$J$2>=$G$5,$E$12*$F$5/100+$E$5*$J$2>=$G$5,$E$14*$F$5/100+$E$5*$J$2>=$G$5,$E$16*$F$5/100+$E$5*$J$2>=$G$5,$E$18*$F$5/100+$E$5*$J$2>=$G$5,(($E$10*$F$5/100+$E$5*$J$2)+($E$12*$F$5/100+$E$5*$J$2)+($E$14*$F$5/100+$E$5*$J$2)+($E$16*$F$5/100+$E$5*$J$2)+($E$18*$F$5/100+$E$5*$J$2)>=$G$5)),L18+ROUNDDOWN((($G$5-$J$5)*E18/$E$21),0),"")) ->  | H19: =IF(月額保険料計算シート!J35=0,"",IF(OR(D18=0,D18<設定シート!$E$22,D18>=設定シート!$E$23),0,IF(OR($E$10*$F$6/100+$E$6*$J$2>=$G$6,$E$12*$F$6/100+$E$6*$J$2>=$G$6,$E$14*$F$6/100+$E$6*$J$2>=$G$6,$E$16*$F$6/100+$E$6*$J$2>=$G$6,$E$18*$F$6/100+$E$6*$J$2>=$G$6,(($E$10*$F$6/100+$E$6*$J$2)+($E$12*$F$6/100+$E$6*$J$2)+($E$14*$F$6/100+$E$6*$J$2)+($E$16*$F$6/100+$E$6*$J$2)+($E$18*$F$6/100+$E$6*$J$2)>=$G$6)),M18+ROUNDDOWN((($G$6-$J$6)*E18/$E$22),0),""))) ->  | I19: =IF((IF(月額保険料計算シート!F38=0,0,IF(D10<=月額保険料計算シート!$M$57,E10*$F$7/100+$E$7*$J$2*月額保険料計算シート!$O$57*月額保険料計算シート!$M$59,IF(AND(D10<=月額保険料計算シート!$M$58,D10>月額保険料計算シート!$M$57),E10*$F$7/100+$E$7*$J$2*月額保険料計算シート!$M$59,IF(D10>月額保険料計算シート!$M$58,E10*$F$7/100+$E$7*$J$2)))))+(IF(月額保険料計算シート!G38=0,0,IF(D12<=月額保険料計算シート!$M$57,E12*$F$7/100+$E$7*$J$2*月額保険料計算シート!$O$57*月額保険料計算シート!$M$59,IF(AND(D12<=月額保険料計算シート!$M$58,D12>月額保険料計算シート!$M$57),E12*$F$7/100+$E$7*$J$2*月額保険料計算シート!$M$59,IF(D12>月額保険料計算シート!$M$58,E12*$F$7/100+$E$7*$J$2)))))+(IF(月額保険料計算シート!H38=0,0,IF(D14<=月額保険料計算シート!$M$57,E14*$F$7/100+$E$7*$J$2*月額保険料計算シート!$O$57*月額保険料計算シート!$M$59,IF(AND(D14<=月額保険料計算シート!$M$58,D14>月額保険料計算シート!$M$57),E14*$F$7/100+$E$7*$J$2*月額保険料計算シート!$M$59,IF(D14>月額保険料計算シート!$M$58,E14*$F$7/100+$E$7*$J$2)))))+(IF(月額保険料計算シート!I38=0,0,IF(D16<=月額保険料計算シート!$M$57,E16*$F$7/100+$E$7*$J$2*月額保険料計算シート!$O$57*月額保険料計算シート!$M$59,IF(AND(D16<=月額保険料計算シート!$M$58,D16>月額保険料計算シート!$M$57),E16*$F$7/100+$E$7*$J$2*月額保険料計算シート!$M$59,IF(D16>月額保険料計算シート!$M$58,E16*$F$7/100+$E$7*$J$2)))))+(IF(月額保険料計算シート!J38=0,0,IF(D18<=月額保険料計算シート!$M$57,E18*$F$7/100+$E$7*$J$2*月額保険料計算シート!$O$57*月額保険料計算シート!$M$59,IF(AND(D18<=月額保険料計算シート!$M$58,D18>月額保険料計算シート!$M$57),E18*$F$7/100+$E$7*$J$2*月額保険料計算シート!$M$59,IF(D18>月額保険料計算シート!$M$58,E18*$F$7/100+$E$7*$J$2)))))>$G$7,ROUNDDOWN(($G$7-$J$7)*(E18/$E$21),0)+N18,"") -> 
B20: 旧被扶養者 | C20: =IF(月額保険料計算シート!D15="","",月額保険料計算シート!D15) ->  | D20: =IF(ISBLANK(月額保険料計算シート!B15),"",月額保険料計算シート!B15) ->  | E20: =月額保険料計算シート!P15 -> 0 | F20: =IF(C20="","",IF($J$2=0.3,$E$4*0.3,IF(C20="◎",$E$4*0.5,$E$4))) ->  | G20: =IF(C20="","",IF($J$2=0.3,$E$5*0.3,IF(C20="◎",$E$5*0.5,$E$5))) ->  | I20: =IF(C20="","",IF($J$2=0.3,$E$7*0.3,IF(C20="◎",$E$7*0.5,$E$7))) ->  | J20: =SUM(F20:I20) -> 0 | K20: =COUNTIF(C20,"◎")*E4*J2*0.5+COUNTIF(C20,"×")*E4*J2 -> 0 | L20: =COUNTIF(C20,"◎")*E5*J2*0.5+COUNTIF(C20,"×")*E5*J2 -> 0 | N20: =COUNTIF(C20,"◎")*E7*J2*0.5+COUNTIF(C20,"×")*E7*J2 -> 0
B21: 合 計 | E21: =E10+E12+E14+E16+E18 -> 0 | F21: =SUM(F10:F20) -> 0 | G21: =SUM(G10:G20) -> 0 | H21: 0 | I21: 0 | J21: 0
B22: 介護用賦課基準額（世帯合計） | E22: =SUMIFS(E10:E19,D10:D19,">="&設定シート!$E$22,D10:D19,"<"&設定シート!$E$23) -> 0
C23: ※ 計算結果は概算ですので、数円程度の差異が生じる場合があります。
C24: =TRIM("※ １月１日現在の年齢が"&設定シート!E23-1&"歳であっても加入時点で"&設定シート!E23&"歳の場合は、介護保険料は賦課されません。") -> ※ １月１日現在の年齢が64歳であっても加入時点で65歳の場合は、介護保険料は賦課されません。
B25: =IF(設定シート!E3>7,"子育て支援賦課基準額（世帯合計）","") -> 子育て支援賦課基準額（世帯合計） | E25: =SUMIF(D10:D19,">="&設定シート!$G$17,E10:E19) -> 0
B26: ↑ 子育て支援金の対象が加入者の年齢で均等割対象外を除く場合は、この数値にすること。

Sheet 試算結果【提供用】 (hidden)
A1: =TRIM(月額保険料計算シート!A1&"保険料 【月額】 試算結果") -> 令和8年度保険料 【月額】 試算結果
A2: =NOW() -> 2026-02-25T10:01:51.800
A3: 月額 | E3: 給与収入 | F3: 給与所得 | G3: 非自発 | H3: 非自発所得 | I3: 給与調整控除 | J3: 年金収入 | K3: 年金所得 | L3: 年金特別控除 | M3: 営業所得等 | N3: 基礎控除 | O3: 賦課基準額
A4: 医療均等割額 | B4: =ROUNDDOWN(月額保険料計算シート!医療均等割/12,0) -> 3966 | D4: 加入者A | E4: 5000000 | F4: 3560000 | H4: 3560000 | K4: 0 | L4: 0 | N4: 430000 | O4: 3130000
B5: ● | D5: 加入者B | F5: 0 | H5: 0 | K5: 0 | L5: 0 | N5: 0 | O5: 0
A6: 支援金均等割額 | B6: =ROUNDDOWN(月額保険料計算シート!支援金均等割/12,0) -> 1466 | D6: 加入者C | F6: 0 | H6: 0 | K6: 0 | L6: 0 | N6: 0 | O6: 0
D7: 加入者D | F7: 0 | H7: 0 | K7: 0 | L7: 0 | N7: 0 | O7: 0
A8: 介護均等割額 | B8: =ROUNDDOWN(月額保険料計算シート!介護均等割/12,0) -> 1483 | D8: 加入者E | F8: 0 | H8: 0 | K8: 0 | L8: 0 | N8: 0 | O8: 0
A9: =IF(設定シート!E3<=7,"",TRIM(設定シート!C17&"均等割額")) -> 子育て支援分均等割額 | D9: 旧被扶 | F9: 0 | H9: 0 | K9: 0 | L9: 0 | N9: 0 | O9: 0
B10: =IF(設定シート!E3<=7,"",ROUNDDOWN([0]!子ども支援金均等割/12,0)) -> 156 | D10: 合計 | E10: 5000000 | F10: 3560000 | H10: 3560000 | I10: 0 | J10: 0 | K10: 0 | L10: 0 | M10: 0 | N10: 430000 | O10: 3130000
A12: 医療所得割率 | B12: =TRIM(ROUNDDOWN(月額保険料計算シート!医療割合/12,3)&"%") -> 0.625% | F12: 加入者Ａ | G12: 加入者Ｂ | H12: 加入者Ｃ | I12: 加入者Ｄ | J12: 加入者E | K12: 旧被扶養者 | L12: 合 計
E13: 医療分 | F13: 24051 | G13: 0 | H13: 0 | I13: 0 | J13: 0 | K13: 0 | L13: 24051
A14: 支援金所得割率 | B14: =TRIM(ROUNDDOWN(月額保険料計算シート!支援金割合/12,3)&"%") -> 0.233% | F14: 0 | G14: 0 | H14: 0 | I14: 0 | J14: 0 | K14: 0 | L14: 0
E15: 支援分 | F15: 8416 | G15: 0 | H15: 0 | I15: 0 | J15: 0 | K15: 0 | L15: 8416
A16: 介護所得割率 | B16: =TRIM(ROUNDDOWN(月額保険料計算シート!介護割合/12,3)&"%") -> 0.202% | F16: 0 | G16: 0 | H16: 0 | I16: 0 | J16: 0 | K16: 0 | L16: 0
A17: =IF(設定シート!E3<=7,"",TRIM(設定シート!C17&"所得割率")) -> 子育て支援分所得割率 | E17: 介護分 | F17: 7251 | G17: 0 | H17: 0 | I17: 0 | J17: 0 | L17: 7251
B18: =IF(設定シート!E3<=7,"",TRIM(ROUNDDOWN([0]!子ども支援金割合/12,3)&"%")) -> 0.022% | F18: 0 | G18: 0 | H18: 0 | I18: 0 | J18: 0 | L18: 0
E19: 子育て支援分 | F19: 2630 | G19: 0 | H19: 0 | I19: 0 | J19: 0 | L19: 2630
F20: 0 | G20: 0 | H20: 0 | I20: 0 | J20: 0 | K20: 0 | L20: 0
E21: 合計 | F21: 42348 | G21: 0 | H21: 0 | I21: 0 | J21: 0 | K21: 0 | L21: 42348 | M21: 下段は按分後の数値
F22: 42348 | G22: 0 | H22: 0 | I22: 0 | J22: 0 | K22: 0 | L22: 42348 | M22: ※ 任意継続との比較金額
F23: 計算結果は目安であり、数円程度の差異が生じる場合があります。
F24: ★なお、同一世帯に既に国保加入者がいる場合は、計算結果が一致しない場合があります。
F26: ※ 令和８年度から「子ども・子育て支援金分」が追加されました。
